T,Company(T),Bvaser(T),Bvasdiv(T),Cipfa2(T),Cipfa3(T),Account,Account(T),Updated,TransNo,Amount,Montype(T),Supplier name,SuppID,Supplier group,TT,Period,Cat1,TC,Text
B,Bromsgrove District Council,Not BVACOP Service,Not BVACOP Sub Division,Current Assets,Stocks,300,Stock Movement,28/05/2014,184391,668.00,,Arco Ltd,1027,1,VO,201402,XX611,P1,
B,Bromsgrove District Council,Not BVACOP Service,Not BVACOP Sub Division,Capital Expenditure,Other Advances,X41,Miscellaneous expenses,08/05/2014,184891,923.80,Capital income and expenditure,Kelbec Civils Ltd,9908,2,VO,201402,CAPS,P1,
B,Bromsgrove District Council,Surpluses/deficits on trading undertakings,Depot Services,Supplies and Services,"Equipment, furniture and materials",D01,Equipment - purchase,21/05/2014,185557,-56.24,Revenue income and expenditure,Broad Street D.I.Y,1089,1,CN,201402,DP02,P1,
B,Bromsgrove District Council,Not BVACOP Service,Not BVACOP Sub Division,Current Assets,Stocks,300,Stock Movement,22/05/2014,185559,-77.34,,Scarab Sweepers Ltd,5827,1,CN,201402,XX611,P1,
B,Bromsgrove District Council,Surpluses/deficits on trading undertakings,Internal Business Units and Support Services,Supplies and Services,Services,D47,Consultants' fees,07/05/2014,185701,"1,600.00",Revenue income and expenditure,Mr. Jack Smyth,9653,1,VO,201402,LS12,P1,
B,Bromsgrove District Council,Surpluses/deficits on trading undertakings,Depot Services,Transport Related Expenditure,Contract Hire and operating leases,C31,Contract hire of vehicles,13/05/2014,185714,680.00,Revenue income and expenditure,Trash UK Ltd,9198,1,VO,201402,DW11,P1,
B,Bromsgrove District Council,Surpluses/deficits on trading undertakings,Depot Services,Transport Related Expenditure,Contract Hire and operating leases,C31,Contract hire of vehicles,13/05/2014,185715,850.00,Revenue income and expenditure,Trash UK Ltd,9198,1,VO,201402,DW11,P1,
B,Bromsgrove District Council,Surpluses/deficits on trading undertakings,Depot Services,Supplies and Services,Miscellaneous expenses,D88,Miscellaneous expenses,12/05/2014,185729,130.48,Revenue income and expenditure,Mercia Waste Management Ltd,1433,1,VO,201402,DW32,P1,
B,Bromsgrove District Council,Surpluses/deficits on trading undertakings,Depot Services,Transport Related Expenditure,Direct Transport Costs,C01,Vehicle repairs/maint'ce,12/05/2014,185738,175.18,Revenue income and expenditure,Dennis Eagle Ltd,1191,1,VO,201402,DW11,P1,
B,Bromsgrove District Council,Not BVACOP Service,Not BVACOP Sub Division,Current Assets,Stocks,300,Stock Movement,13/05/2014,185747,27.67,,Zoeller Waste System Ltd,6172,1,VO,201402,XX611,P1,
B,Bromsgrove District Council,Surpluses/deficits on trading undertakings,Depot Services,Transport Related Expenditure,Contract Hire and operating leases,C31,Contract hire of vehicles,13/05/2014,185748,850.00,Revenue income and expenditure,Trash UK Ltd,9198,1,VO,201402,DW11,P1,
B,Bromsgrove District Council,Surpluses/deficits on trading undertakings,Depot Services,Transport Related Expenditure,Contract Hire and operating leases,C31,Contract hire of vehicles,08/05/2014,185758,398.00,Revenue income and expenditure,Fast Fit Nationwide Ltd,1236,1,VO,201402,DW14,P1,
B,Bromsgrove District Council,Not BVACOP Service,Not BVACOP Sub Division,Current Assets,Stocks,300,Stock Movement,07/05/2014,185765,258.05,,Wurth UK Ltd,10087,1,VO,201402,XX611,P1,
B,Bromsgrove District Council,Surpluses/deficits on trading undertakings,Depot Services,Supplies and Services,"Equipment, furniture and materials",D06,Materials - purchased,07/05/2014,185765,19.19,Revenue income and expenditure,Wurth UK Ltd,10087,1,VO,201402,DT41,P1,
B,Bromsgrove District Council,Surpluses/deficits on trading undertakings,Depot Services,Supplies and Services,"Equipment, furniture and materials",D03,Equipment - rental/lease,22/05/2014,185772,128.24,Revenue income and expenditure,Berendsen UK Ltd,9560,1,VO,201402,DP02,P1,
B,Bromsgrove District Council,Surpluses/deficits on trading undertakings,Depot Services,Supplies and Services,"Equipment, furniture and materials",D02,Equipment - maintenance,22/05/2014,185772,41.92,Revenue income and expenditure,Berendsen UK Ltd,9560,1,VO,201402,DP02,P1,
B,Bromsgrove District Council,Surpluses/deficits on trading undertakings,Depot Services,Supplies and Services,"Equipment, furniture and materials",D03,Equipment - rental/lease,22/05/2014,185772,606.81,Revenue income and expenditure,Berendsen UK Ltd,9560,1,VO,201402,DT41,P1,
B,Bromsgrove District Council,Surpluses/deficits on trading undertakings,Depot Services,Current Assets,Stocks,300,Stock Movement,14/05/2014,185778,526.30,Revenue income and expenditure,Dennis Eagle Ltd,1191,1,VO,201402,DW14,P1,
B,Bromsgrove District Council,Surpluses/deficits on trading undertakings,Depot Services,Transport Related Expenditure,Direct Transport Costs,C01,Vehicle repairs/maint'ce,16/05/2014,185786,923.32,Revenue income and expenditure,Dennis Eagle Ltd,1191,1,VO,201402,DW14,P1,
B,Bromsgrove District Council,Surpluses/deficits on trading undertakings,Depot Services,Current Assets,Stocks,300,Stock Movement,16/05/2014,185786,524.04,Revenue income and expenditure,Dennis Eagle Ltd,1191,1,VO,201402,DW14,P1,
B,Bromsgrove District Council,Surpluses/deficits on trading undertakings,Internal Business Units and Support Services,Supplies and Services,Communication and computing,D57,Computer - software,07/05/2014,185791,"4,855.48",Revenue income and expenditure,Phoenix Software Ltd,2091,1,VO,201402,IT12,P1,
B,Bromsgrove District Council,Surpluses/deficits on trading undertakings,Internal Business Units and Support Services,Supplies and Services,Communication and computing,D57,Computer - software,07/05/2014,185791,"4,844.02",Revenue income and expenditure,Phoenix Software Ltd,2091,1,VO,201402,IT10,P1,
B,Bromsgrove District Council,Not BVACOP Service,Not BVACOP Sub Division,Current Assets,Stocks,300,Stock Movement,12/05/2014,185817,"1,298.18",,WasteParts UK Ltd,6508,1,VO,201402,XX611,P1,
B,Bromsgrove District Council,Planning and Development Services,Advice,Supplies and Services,Communication and computing,D54,Advertising (general),08/05/2014,185828,209.99,Revenue income and expenditure,TMP (UK) Ltd,1646,1,VO,201402,DC00,P1,
B,Bromsgrove District Council,Surpluses/deficits on trading undertakings,Internal Business Units and Support Services,Supplies and Services,Communication and computing,D57,Computer - software,07/05/2014,185867,250.00,Revenue income and expenditure,Xpress Software Solutions,9821,1,VN,201402,IT12,P1,
B,Bromsgrove District Council,Not BVACOP Service,Not BVACOP Sub Division,Capital Expenditure,"Plant, vehicles and equipment",X22,Computer equipment etc.,08/05/2014,185897,266.40,Capital income and expenditure,Probrand Limited,9439,1,VO,201402,CAPR,P1,
B,Bromsgrove District Council,Surpluses/deficits on trading undertakings,Internal Business Units and Support Services,Supplies and Services,Communication and computing,D57,Computer - software,07/05/2014,185900,"2,450.00",Revenue income and expenditure,Phoenix Software Ltd,2091,1,VO,201402,IT10,P1,
B,Bromsgrove District Council,Surpluses/deficits on trading undertakings,Internal Business Units and Support Services,Supplies and Services,Communication and computing,D57,Computer - software,07/05/2014,185900,"2,450.00",Revenue income and expenditure,Phoenix Software Ltd,2091,1,VO,201402,IT12,P1,
B,Bromsgrove District Council,Not BVACOP Service,Not BVACOP Sub Division,Capital Expenditure,"Plant, vehicles and equipment",X22,Computer equipment etc.,08/05/2014,185904,243.60,Capital income and expenditure,Probrand Limited,9439,1,VO,201402,CAPR,P1,
B,Bromsgrove District Council,Planning and Development Services,Advice,Supplies and Services,Services,D47,Consultants' fees,08/05/2014,185913,802.50,Revenue income and expenditure,Kernon Countryside Consultants,1381,1,VO,201402,DC00,P1,
B,Bromsgrove District Council,,,Supplies and Services,Communication and computing,D50,Debt Collection Fees,08/05/2014,185925,17.50,Revenue income and expenditure,Bristow & Sutor,1085,1,VN,201402,RB10,P1,
B,Bromsgrove District Council,,,Supplies and Services,Communication and computing,D50,Debt Collection Fees,08/05/2014,185926,12.34,Revenue income and expenditure,Bristow & Sutor,1085,1,VN,201402,RB10,P1,
B,Bromsgrove District Council,Cultural and Related Services,Outdoor sports and recreation facilities,Supplies and Services,Services,D47,Consultants' fees,12/05/2014,185931,183.00,Revenue income and expenditure,Bradley Environmental Consultants,1082,1,VO,201402,RG63,P1,
B,Bromsgrove District Council,Environmental Services,Public Toilets,Supplies and Services,Services,D47,Consultants' fees,12/05/2014,185932,183.00,Revenue income and expenditure,Bradley Environmental Consultants,1082,1,VO,201402,PC04,P1,
B,Bromsgrove District Council,Environmental Services,Public Toilets,Supplies and Services,Services,D47,Consultants' fees,12/05/2014,185933,183.00,Revenue income and expenditure,Bradley Environmental Consultants,1082,1,VO,201402,PC01,P1,
B,Bromsgrove District Council,Cultural and Related Services,Outdoor sports and recreation facilities,Supplies and Services,Services,D47,Consultants' fees,12/05/2014,185934,183.00,Revenue income and expenditure,Bradley Environmental Consultants,1082,1,VO,201402,RG64,P1,
B,Bromsgrove District Council,Cultural and Related Services,Outdoor sports and recreation facilities,Supplies and Services,Services,D47,Consultants' fees,12/05/2014,185935,183.00,Revenue income and expenditure,Bradley Environmental Consultants,1082,1,VO,201402,RG62,P1,
B,Bromsgrove District Council,Surpluses/deficits on trading undertakings,Depot Services,Transport Related Expenditure,Contract Hire and operating leases,C31,Contract hire of vehicles,20/05/2014,185937,330.00,Revenue income and expenditure,Gulliver's Truck Hire Ltd,10600,1,VO,201402,DW21,P1,
B,Bromsgrove District Council,Highways and transport services,Off-street Parking,Supplies and Services,Miscellaneous expenses,D88,Miscellaneous expenses,09/05/2014,185949,"2,006.40",Revenue income and expenditure,Jade Security Services Ltd,7651,1,VO,201402,CP00,P1,
B,Bromsgrove District Council,Environmental Services,Cemeteries,Supplies and Services,Miscellaneous expenses,D88,Miscellaneous expenses,08/05/2014,185952,62.72,Revenue income and expenditure,Mercia Waste Management Ltd,1433,1,VO,201402,CE01,P1,
B,Bromsgrove District Council,Surpluses/deficits on trading undertakings,Depot Services,Transport Related Expenditure,Direct Transport Costs,C01,Vehicle repairs/maint'ce,08/05/2014,185954,93.00,Revenue income and expenditure,Imperial Commercials Ltd ( Derby),10589,1,VO,201402,DW11,P4,
B,Bromsgrove District Council,Surpluses/deficits on trading undertakings,Depot Services,Transport Related Expenditure,Direct Transport Costs,C01,Vehicle repairs/maint'ce,08/05/2014,185954,35.00,Revenue income and expenditure,Imperial Commercials Ltd ( Derby),10589,1,VO,201402,DW11,P1,
B,Bromsgrove District Council,Surpluses/deficits on trading undertakings,Depot Services,Transport Related Expenditure,Direct Transport Costs,C01,Vehicle repairs/maint'ce,08/05/2014,185955,35.00,Revenue income and expenditure,Imperial Commercials Ltd ( Derby),10589,1,VO,201402,DW21,P1,
B,Bromsgrove District Council,Surpluses/deficits on trading undertakings,Depot Services,Transport Related Expenditure,Direct Transport Costs,C01,Vehicle repairs/maint'ce,08/05/2014,185955,112.00,Revenue income and expenditure,Imperial Commercials Ltd ( Derby),10589,1,VO,201402,DW21,P4,
B,Bromsgrove District Council,Surpluses/deficits on trading undertakings,Depot Services,Transport Related Expenditure,Direct Transport Costs,C01,Vehicle repairs/maint'ce,08/05/2014,185965,117.00,Revenue income and expenditure,G P Hose Services Ltd,1325,1,VO,201402,DW11,P1,
B,Bromsgrove District Council,Surpluses/deficits on trading undertakings,Depot Services,Premise Related Expenditure,Water Services,B51,Water charges,09/05/2014,185977,"5,575.82",Revenue income and expenditure,Severn Trent Water,8934,1,VO,201402,DS61,P4,
B,Bromsgrove District Council,Not BVACOP Service,Not BVACOP Sub Division,Current Assets,Stocks,300,Stock Movement,09/05/2014,185978,298.66,,PCS Jangro,7294,1,VO,201402,XX611,P1,
B,Bromsgrove District Council,Environmental Services,Public Toilets,Supplies and Services,"Equipment, furniture and materials",D06,Materials - purchased,09/05/2014,185978,30.07,Revenue income and expenditure,PCS Jangro,7294,1,VO,201402,PC03,P1,
B,Bromsgrove District Council,Surpluses/deficits on trading undertakings,Internal Business Units and Support Services,Supplies and Services,Communication and computing,D57,Computer - software,08/05/2014,185982,"2,610.00",Revenue income and expenditure,Computer Aided Development Corporation,10689,1,VO,201402,IT10,P1,
B,Bromsgrove District Council,Surpluses/deficits on trading undertakings,Depot Services,Transport Related Expenditure,Contract Hire and operating leases,C31,Contract hire of vehicles,08/05/2014,185986,850.00,Revenue income and expenditure,Gulliver's Truck Hire Ltd,10600,1,VO,201402,DW14,P1,
B,Bromsgrove District Council,Surpluses/deficits on trading undertakings,Depot Services,Transport Related Expenditure,Contract Hire and operating leases,C31,Contract hire of vehicles,08/05/2014,185987,165.00,Revenue income and expenditure,Gulliver's Truck Hire Ltd,10600,1,VO,201402,DW21,P1,
B,Bromsgrove District Council,Environmental Services,Public Toilets,Supplies and Services,Services,D47,Consultants' fees,13/05/2014,185989,183.00,Revenue income and expenditure,Bradley Environmental Consultants,1082,1,VO,201402,PC03,P1,
B,Bromsgrove District Council,,,Supplies and Services,Miscellaneous expenses,D87,Marketing/promotion/publicity,13/05/2014,185990,"2,000.00",Revenue income and expenditure,DCZ Photography Ltd,10683,1,VO,201402,CM25,P1,
B,Bromsgrove District Council,Planning and Development Services,Advice,Supplies and Services,Communication and computing,D54,Advertising (general),08/05/2014,186001,324.65,Revenue income and expenditure,TMP (UK) Ltd,1646,1,VO,201402,DC00,P1,
B,Bromsgrove District Council,Surpluses/deficits on trading undertakings,Depot Services,Premise Related Expenditure,"Repairs, alterations and maint. of buildings",B02,External repair/maint. (reg'd for gross pay't),13/05/2014,186007,662.80,Revenue income and expenditure,Paul's Electrical Services (West Midlands)Ltd.,4977,2,VO,201402,DS62,P1,
B,Bromsgrove District Council,Surpluses/deficits on trading undertakings,Depot Services,Supplies and Services,"Equipment, furniture and materials",D06,Materials - purchased,12/05/2014,186016,76.99,Revenue income and expenditure,Air Liquide Limited,1407,1,VO,201402,DT41,P1,
B,Bromsgrove District Council,Surpluses/deficits on trading undertakings,Depot Services,Transport Related Expenditure,Direct Transport Costs,C06,Tyres,12/05/2014,186020,386.92,Revenue income and expenditure,A T S Euromaster Ltd.,8244,1,VO,201402,DW18,P1,
B,Bromsgrove District Council,Surpluses/deficits on trading undertakings,Depot Services,Transport Related Expenditure,Direct Transport Costs,C06,Tyres,12/05/2014,186020,530.92,Revenue income and expenditure,A T S Euromaster Ltd.,8244,1,VO,201402,DW11,P1,
B,Bromsgrove District Council,Surpluses/deficits on trading undertakings,Depot Services,Transport Related Expenditure,Direct Transport Costs,C06,Tyres,12/05/2014,186020,21.08,Revenue income and expenditure,A T S Euromaster Ltd.,8244,1,VO,201402,DW21,P1,
B,Bromsgrove District Council,Surpluses/deficits on trading undertakings,Depot Services,Transport Related Expenditure,Direct Transport Costs,C06,Tyres,12/05/2014,186020,561.26,Revenue income and expenditure,A T S Euromaster Ltd.,8244,1,VO,201402,DW14,P1,
B,Bromsgrove District Council,Surpluses/deficits on trading undertakings,Depot Services,Employees,Direct Employee Expenses,A10,Agency workers,12/05/2014,186021,"6,840.10",Revenue income and expenditure,MatrixSCM Ltd,9043,1,VN,201402,DW11,P1,
B,Bromsgrove District Council,Surpluses/deficits on trading undertakings,Depot Services,Employees,Direct Employee Expenses,A10,Agency workers,12/05/2014,186021,"1,128.56",Revenue income and expenditure,MatrixSCM Ltd,9043,1,VN,201402,DW21,P1,
B,Bromsgrove District Council,Surpluses/deficits on trading undertakings,Depot Services,Transport Related Expenditure,Direct Transport Costs,C01,Vehicle repairs/maint'ce,07/05/2014,186023,48.66,Revenue income and expenditure,Guest Trucks,7762,1,VO,201402,DW21,P1,
B,Bromsgrove District Council,Surpluses/deficits on trading undertakings,Depot Services,Transport Related Expenditure,Direct Transport Costs,C01,Vehicle repairs/maint'ce,12/05/2014,186024,34.50,Revenue income and expenditure,Guest Trucks,7762,1,VO,201402,DT41,P1,
B,Bromsgrove District Council,Surpluses/deficits on trading undertakings,Depot Services,Transport Related Expenditure,Direct Transport Costs,C01,Vehicle repairs/maint'ce,12/05/2014,186024,72.27,Revenue income and expenditure,Guest Trucks,7762,1,VO,201402,DW32,P1,
B,Bromsgrove District Council,Not BVACOP Service,Not BVACOP Sub Division,Current Assets,Stocks,300,Stock Movement,08/05/2014,186027,113.60,,Buxtons Ltd,10574,1,VO,201402,XX611,P1,
B,Bromsgrove District Council,Surpluses/deficits on trading undertakings,Depot Services,Premise Related Expenditure,Cleaning and domestic supplies,B81,Cleaning and domestic supplies,08/05/2014,186034,305.46,Revenue income and expenditure,Rentokil Initial UK Ltd,1540,1,VO,201402,DP02,P1,
B,Bromsgrove District Council,,,Premise Related Expenditure,Cleaning and domestic supplies,B80,Contract cleaning,02/06/2014,186035,382.42,Revenue income and expenditure,We Clean Ltd,2966,1,VO,201402,CC01,P1,
B,Bromsgrove District Council,,,Premise Related Expenditure,Cleaning and domestic supplies,B80,Contract cleaning,09/05/2014,186036,58.00,Revenue income and expenditure,We Clean Ltd,2966,1,VO,201402,CC01,P1,
B,Bromsgrove District Council,Surpluses/deficits on trading undertakings,Internal Business Units and Support Services,Supplies and Services,Communication and computing,D56,Computer - hardware,12/05/2014,186043,103.97,Revenue income and expenditure,Universal Smart Cards Limited,9818,1,VO,201402,IT12,P1,
B,Bromsgrove District Council,Surpluses/deficits on trading undertakings,Internal Business Units and Support Services,Supplies and Services,Communication and computing,D56,Computer - hardware,12/05/2014,186043,103.98,Revenue income and expenditure,Universal Smart Cards Limited,9818,1,VO,201402,IT10,P1,
B,Bromsgrove District Council,,,Supplies and Services,Miscellaneous expenses,D88,Miscellaneous expenses,29/05/2014,186045,122.01,Revenue income and expenditure,G4S Cash Solutions UK Ltd.,9753,1,VO,201402,CC01,P1,
B,Bromsgrove District Council,,,Supplies and Services,Miscellaneous expenses,D88,Miscellaneous expenses,29/05/2014,186046,24.96,Revenue income and expenditure,G4S Cash Solutions UK Ltd.,9753,1,VO,201402,CC01,P1,
B,Bromsgrove District Council,,,Supplies and Services,Communication and computing,D59,Telephones,08/05/2014,186050,52.52,Revenue income and expenditure,Worcestershire Telecare Limited,7087,1,VN,201402,RB10,P1,
B,Bromsgrove District Council,Surpluses/deficits on trading undertakings,Depot Services,Employees,Direct Employee Expenses,A10,Agency workers,01/05/2014,186054,"1,473.05",Revenue income and expenditure,MatrixSCM Ltd,9043,1,VN,201402,DW21,P1,
B,Bromsgrove District Council,Planning and Development Services,Advice,Employees,Direct Employee Expenses,A10,Agency workers,01/05/2014,186054,"1,400.79",Revenue income and expenditure,MatrixSCM Ltd,9043,1,VN,201402,DC00,P1,
B,Bromsgrove District Council,Surpluses/deficits on trading undertakings,Depot Services,Employees,Direct Employee Expenses,A10,Agency workers,01/05/2014,186054,"5,047.44",Revenue income and expenditure,MatrixSCM Ltd,9043,1,VN,201402,DW11,P1,
B,Bromsgrove District Council,Surpluses/deficits on trading undertakings,Internal Business Units and Support Services,Supplies and Services,Communication and computing,D59,Telephones,07/05/2014,186059,255.41,Revenue income and expenditure,Gamma Business Communications Ltd,9982,1,VN,201402,IT12,P1,
B,Bromsgrove District Council,Surpluses/deficits on trading undertakings,Internal Business Units and Support Services,Supplies and Services,Services,D49,Miscellaneous services,07/05/2014,186060,"2,675.15",Revenue income and expenditure,Vodafone Ltd  (Cable & Wireless),1103,1,VN,201402,IT10,P1,
B,Bromsgrove District Council,Surpluses/deficits on trading undertakings,Internal Business Units and Support Services,Supplies and Services,Communication and computing,D77,Internet,07/05/2014,186061,134.08,Revenue income and expenditure,Vodafone Ltd  (Thus plc.),5306,1,VN,201402,IT12,P1,
B,Bromsgrove District Council,Surpluses/deficits on trading undertakings,Internal Business Units and Support Services,Supplies and Services,Communication and computing,D77,Internet,07/05/2014,186062,770.00,Revenue income and expenditure,Vodafone Ltd  (Cable & Wireless),1103,1,VN,201402,IT12,P1,
B,Bromsgrove District Council,Surpluses/deficits on trading undertakings,Internal Business Units and Support Services,Supplies and Services,Communication and computing,D77,Internet,07/05/2014,186065,949.42,Revenue income and expenditure,Virgin Media Business,8767,1,VN,201402,IT10,P1,
B,Bromsgrove District Council,Surpluses/deficits on trading undertakings,Internal Business Units and Support Services,Supplies and Services,Communication and computing,D77,Internet,07/05/2014,186067,131.10,Revenue income and expenditure,British Telecommunications plc,1098,1,VN,201402,IT12,P1,
B,Bromsgrove District Council,Surpluses/deficits on trading undertakings,Internal Business Units and Support Services,Supplies and Services,Services,D49,Miscellaneous services,07/05/2014,186068,"2,690.47",Revenue income and expenditure,Vodafone Ltd  (Cable & Wireless),1103,1,VN,201402,IT10,P1,
B,Bromsgrove District Council,Not BVACOP Service,Not BVACOP Sub Division,Current Assets,Stocks,300,Stock Movement,20/05/2014,186069,"1,216.80",,Ultrasol,5459,1,VO,201402,XX611,P1,
B,Bromsgrove District Council,Surpluses/deficits on trading undertakings,Internal Business Units and Support Services,Supplies and Services,Communication and computing,D56,Computer - hardware,07/05/2014,186070,"10,740.82",Revenue income and expenditure,Dimension Data UK,4867,1,VN,201402,IT10,P1,
B,Bromsgrove District Council,Highways and transport services,Off-street Parking,Premise Related Expenditure,Cleaning and domestic supplies,B81,Cleaning and domestic supplies,02/05/2014,186072,-46.47,Revenue income and expenditure,Initial Washroom Solutions Ltd.,5187,1,CN,201402,CP00,P1,
B,Bromsgrove District Council,Not BVACOP Service,Not BVACOP Sub Division,Capital Expenditure,"Plant, vehicles and equipment",X23,Software,06/05/2014,186085,367.95,Capital income and expenditure,Civica  UK Ltd,1526,1,VN,201402,CAPF,P1,
B,Bromsgrove District Council,Not BVACOP Service,Not BVACOP Sub Division,Supplies and Services,Miscellaneous expenses,D99,Workflow only - must change code before saving,08/05/2014,186091,995.00,Revenue income and expenditure,IRRV,1361,1,VN,201402,RB99,P1,
B,Bromsgrove District Council,Corporate and Democratic Core,Corporate Management,Supplies and Services,Services,D49,Miscellaneous services,07/05/2014,186092,834.78,Revenue income and expenditure,Worcestershire County Council,1759,5,VN,201402,CM01,P1,
B,Bromsgrove District Council,Cultural and Related Services,Indoor Sports and Recreation Facilities,Supplies and Services,Services,D49,Miscellaneous services,07/05/2014,186092,834.78,Revenue income and expenditure,Worcestershire County Council,1759,5,VN,201402,SC01,P1,
B,Bromsgrove District Council,Surpluses/deficits on trading undertakings,Internal Business Units and Support Services,Supplies and Services,Communication and computing,D51,Printing and stationery,12/05/2014,186095,55.20,Revenue income and expenditure,Redditch Borough Council,1533,5,VN,201402,IT00,P1,
B,Bromsgrove District Council,Surpluses/deficits on trading undertakings,Internal Business Units and Support Services,Supplies and Services,Services,D49,Miscellaneous services,12/05/2014,186095,273.77,Revenue income and expenditure,Redditch Borough Council,1533,5,VN,201402,RS00,P1,
B,Bromsgrove District Council,Surpluses/deficits on trading undertakings,Internal Business Units and Support Services,Supplies and Services,Communication and computing,D56,Computer - hardware,12/05/2014,186095,929.96,Revenue income and expenditure,Redditch Borough Council,1533,5,VN,201402,IT10,P1,
B,Bromsgrove District Council,,,Premise Related Expenditure,Fixtures and Fittings,B63,Internal fixtures/fittings - maint'ce,12/05/2014,186095,46.55,Revenue income and expenditure,Redditch Borough Council,1533,5,VN,201402,CC01,P1,
B,Bromsgrove District Council,,,Supplies and Services,Services,D49,Miscellaneous services,12/05/2014,186095,55.20,Revenue income and expenditure,Redditch Borough Council,1533,5,VN,201402,RB10,P1,
B,Bromsgrove District Council,Surpluses/deficits on trading undertakings,Depot Services,Premise Related Expenditure,"Repairs, alterations and maint. of buildings",B03,Internal repair/maint. (reg'd for gross pay't),12/05/2014,186095,313.07,Revenue income and expenditure,Redditch Borough Council,1533,5,VN,201402,DP02,P1,
B,Bromsgrove District Council,,,Supplies and Services,Communication and computing,D50,Debt Collection Fees,08/05/2014,186096,35.88,Revenue income and expenditure,Bristow & Sutor,1085,1,VN,201402,RB10,P1,
B,Bromsgrove District Council,,,Supplies and Services,Communication and computing,D50,Debt Collection Fees,08/05/2014,186097,21.34,Revenue income and expenditure,Bristow & Sutor,1085,1,VN,201402,RB10,P1,
B,Bromsgrove District Council,Cultural and Related Services,Allotments,Supplies and Services,Miscellaneous expenses,D99,Workflow only - must change code before saving,07/05/2014,186098,14.67,Revenue income and expenditure,Severn Trent Water Ltd,2416,1,VN,201402,AL01,P4,
B,Bromsgrove District Council,Environmental Services,Cemeteries,Supplies and Services,Miscellaneous expenses,D99,Workflow only - must change code before saving,07/05/2014,186099,18.22,Revenue income and expenditure,Severn Trent Water Ltd,2416,1,VN,201402,CE01,P4,
B,Bromsgrove District Council,,,Third Party Payments,Other Local authorities,E33,Shared Service Expend - RBC,07/05/2014,186100,342.18,Revenue income and expenditure,Redditch Borough Council,1533,5,VN,201402,CD41,P4,
B,Bromsgrove District Council,Surpluses/deficits on trading undertakings,Depot Services,Supplies and Services,Communication and computing,D53,Postage/packaging,07/05/2014,186100,"9,825.44",Revenue income and expenditure,Redditch Borough Council,1533,5,VN,201402,CD20,P4,
B,Bromsgrove District Council,Surpluses/deficits on trading undertakings,Internal Business Units and Support Services,Employees,Indirect Employee Expenses,A30,Childminding allowances,12/05/2014,186101,46.35,Revenue income and expenditure,Wider Plan Ltd,10112,1,VN,201402,PS04,P1,
B,Bromsgrove District Council,Surpluses/deficits on trading undertakings,Internal Business Units and Support Services,Supplies and Services,Communication and computing,D56,Computer - hardware,13/05/2014,186102,"3,255.46",Revenue income and expenditure,Oracle Corporation UK Ltd.,9231,3,VO,201402,IT10,P1,
B,Bromsgrove District Council,Surpluses/deficits on trading undertakings,Internal Business Units and Support Services,Supplies and Services,Communication and computing,D56,Computer - hardware,13/05/2014,186102,"3,255.45",Revenue income and expenditure,Oracle Corporation UK Ltd.,9231,3,VO,201402,IT12,P1,
B,Bromsgrove District Council,Surpluses/deficits on trading undertakings,Internal Business Units and Support Services,Supplies and Services,Communication and computing,D56,Computer - hardware,13/05/2014,186103,"3,786.61",Revenue income and expenditure,Oracle Corporation UK Ltd.,9231,3,VO,201402,IT10,P1,
B,Bromsgrove District Council,Surpluses/deficits on trading undertakings,Internal Business Units and Support Services,Supplies and Services,Communication and computing,D56,Computer - hardware,13/05/2014,186103,"3,786.60",Revenue income and expenditure,Oracle Corporation UK Ltd.,9231,3,VO,201402,IT12,P1,
B,Bromsgrove District Council,Surpluses/deficits on trading undertakings,Internal Business Units and Support Services,Supplies and Services,Communication and computing,D57,Computer - software,13/05/2014,186104,"20,000.00",Revenue income and expenditure,IDOX Software Ltd,6852,1,VO,201402,IT10,P1,
B,Bromsgrove District Council,Cultural and Related Services,Community parks and open spaces,Supplies and Services,Miscellaneous expenses,D99,Workflow only - must change code before saving,07/05/2014,186105,324.89,Revenue income and expenditure,Severn Trent Water Ltd,2416,1,VN,201402,SP05,P4,
B,Bromsgrove District Council,,,Supplies and Services,Communication and computing,D53,Postage/packaging,08/05/2014,186107,"2,668.00",Revenue income and expenditure,Kaizen Consultants,7136,1,VN,201402,RB10,P1,
B,Bromsgrove District Council,Environmental Services,Internal Drainage Levy Work,Premise Related Expenditure,Water Services,B51,Water charges,07/05/2014,186108,205.20,Revenue income and expenditure,The Environment Agency,1223,1,VN,201402,LD02,P4,
B,Bromsgrove District Council,Surpluses/deficits on trading undertakings,Internal Business Units and Support Services,Supplies and Services,Services,D49,Miscellaneous services,07/05/2014,186109,999.00,Revenue income and expenditure,Vodafone Ltd (Corporate),1682,1,VN,201402,IT12,P1,
B,Bromsgrove District Council,,,Employees,Direct Employee Expenses,A10,Agency workers,08/05/2014,186111,848.25,Revenue income and expenditure,Morgan Hunt UK Ltd,9519,1,VN,201402,RB10,P1,
B,Bromsgrove District Council,,,Employees,Direct Employee Expenses,A10,Agency workers,08/05/2014,186112,696.15,Revenue income and expenditure,Morgan Hunt UK Ltd,9519,1,VN,201402,RB10,P1,
B,Bromsgrove District Council,,,Employees,Direct Employee Expenses,A10,Agency workers,08/05/2014,186113,678.60,Revenue income and expenditure,Morgan Hunt UK Ltd,9519,1,VN,201402,RB10,P1,
B,Bromsgrove District Council,Surpluses/deficits on trading undertakings,Depot Services,Employees,Direct Employee Expenses,A10,Agency workers,19/05/2014,186115,"12,241.63",Revenue income and expenditure,MatrixSCM Ltd,9043,1,VN,201402,DW11,P1,
B,Bromsgrove District Council,Surpluses/deficits on trading undertakings,Depot Services,Employees,Direct Employee Expenses,A10,Agency workers,19/05/2014,186115,"2,677.91",Revenue income and expenditure,MatrixSCM Ltd,9043,1,VN,201402,DW21,P1,
B,Bromsgrove District Council,Surpluses/deficits on trading undertakings,Internal Business Units and Support Services,Employees,Indirect Employee Expenses,A28,Medical fees (employees'),14/05/2014,186116,"4,550.91",Revenue income and expenditure,Redditch Borough Council,1533,5,VN,201402,PS04,P1,
B,Bromsgrove District Council,Surpluses/deficits on trading undertakings,Internal Business Units and Support Services,Supplies and Services,Services,D49,Miscellaneous services,08/05/2014,186117,75.00,Revenue income and expenditure,Deaf Direct,1189,1,VO,201402,LS05,P4,
B,Bromsgrove District Council,Environmental Services,Public Toilets,Premise Related Expenditure,"Repairs, alterations and maint. of buildings",B03,Internal repair/maint. (reg'd for gross pay't),19/05/2014,186118,125.00,Revenue income and expenditure,G.S. Adams Limited,5337,2,VO,201402,PC03,P1,
B,Bromsgrove District Council,Central Services to the Public,Conducting Elections,Supplies and Services,Communication and computing,D51,Printing and stationery,08/05/2014,186121,11.10,Revenue income and expenditure,Office Depot UK Ltd,6249,1,VO,201402,EL11,P1,
B,Bromsgrove District Council,Central Services to the Public,Conducting Elections,Supplies and Services,Communication and computing,D51,Printing and stationery,08/05/2014,186121,11.11,Revenue income and expenditure,Office Depot UK Ltd,6249,1,VO,201402,EL13,N1,
B,Bromsgrove District Council,Central Services to the Public,Conducting Elections,Supplies and Services,Communication and computing,D51,Printing and stationery,08/05/2014,186121,33.30,Revenue income and expenditure,Office Depot UK Ltd,6249,1,VO,201402,EL05,N1,
B,Bromsgrove District Council,Central Services to the Public,Conducting Elections,Supplies and Services,Communication and computing,D51,Printing and stationery,08/05/2014,186121,11.10,Revenue income and expenditure,Office Depot UK Ltd,6249,1,VO,201402,EL10,P1,
B,Bromsgrove District Council,Central Services to the Public,Conducting Elections,Supplies and Services,Miscellaneous expenses,D82,Non reclaimable VAT,08/05/2014,186121,2.22,Revenue income and expenditure,Office Depot UK Ltd,6249,1,VO,201402,EL13,0,
B,Bromsgrove District Council,Central Services to the Public,Conducting Elections,Supplies and Services,Miscellaneous expenses,D82,Non reclaimable VAT,08/05/2014,186121,6.66,Revenue income and expenditure,Office Depot UK Ltd,6249,1,VO,201402,EL05,0,
B,Bromsgrove District Council,Central Services to the Public,Registration of Electors,Supplies and Services,Communication and computing,D51,Printing and stationery,08/05/2014,186121,9.99,Revenue income and expenditure,Office Depot UK Ltd,6249,1,VO,201402,EL00,P1,
B,Bromsgrove District Council,Highways and transport services,Street Lighting,Supplies and Services,"Equipment, furniture and materials",D06,Materials - purchased,13/05/2014,186122,312.42,Revenue income and expenditure,Senate Electrical,9582,1,VO,201402,HW08,P1,
B,Bromsgrove District Council,Surpluses/deficits on trading undertakings,Depot Services,Supplies and Services,"Equipment, furniture and materials",D06,Materials - purchased,13/05/2014,186123,60.72,Revenue income and expenditure,Arco Ltd,1027,1,VO,201402,DW21,P1,
B,Bromsgrove District Council,Not BVACOP Service,Not BVACOP Sub Division,Current Assets,Stocks,300,Stock Movement,13/05/2014,186123,154.25,,Arco Ltd,1027,1,VO,201402,XX611,P1,
B,Bromsgrove District Council,Not BVACOP Service,Not BVACOP Sub Division,Current Assets,Stocks,300,Stock Movement,19/05/2014,186127,"6,330.34",,WasteParts UK Ltd,6508,1,VO,201402,XX611,P1,
B,Bromsgrove District Council,Not BVACOP Service,Not BVACOP Sub Division,Current Assets,Stocks,300,Stock Movement,13/05/2014,186128,938.00,,WasteParts UK Ltd,6508,1,VO,201402,XX611,P1,
B,Bromsgrove District Council,Surpluses/deficits on trading undertakings,Internal Business Units and Support Services,Supplies and Services,Communication and computing,D56,Computer - hardware,13/05/2014,186130,"4,800.00",Revenue income and expenditure,Prestige Systems Ltd.,8836,1,VO,201402,IT12,P1,
B,Bromsgrove District Council,Surpluses/deficits on trading undertakings,Internal Business Units and Support Services,Supplies and Services,Communication and computing,D56,Computer - hardware,13/05/2014,186130,"4,800.00",Revenue income and expenditure,Prestige Systems Ltd.,8836,1,VO,201402,IT10,P1,
B,Bromsgrove District Council,Surpluses/deficits on trading undertakings,Internal Business Units and Support Services,Supplies and Services,Communication and computing,D56,Computer - hardware,13/05/2014,186131,400.00,Revenue income and expenditure,Prestige Systems Ltd.,8836,1,VO,201402,IT10,P1,
B,Bromsgrove District Council,Surpluses/deficits on trading undertakings,Internal Business Units and Support Services,Supplies and Services,Communication and computing,D56,Computer - hardware,13/05/2014,186131,400.00,Revenue income and expenditure,Prestige Systems Ltd.,8836,1,VO,201402,IT12,P1,
B,Bromsgrove District Council,General Fund Housing Services,,Supplies and Services,Grants and subscriptions,D71,Grants,12/05/2014,186136,"4,400.00",Revenue income and expenditure,Bromsgrove & District C.A.B,2433,1,VO,201402,HG37,P4,
B,Bromsgrove District Council,Planning and Development Services,Other Building control work,Supplies and Services,Services,D42,Seminar and course fees,12/05/2014,186137,"3,228.56",Revenue income and expenditure,LABC,6572,1,VO,201402,BC00,P1,
B,Bromsgrove District Council,Surpluses/deficits on trading undertakings,Internal Business Units and Support Services,Supplies and Services,Services,D42,Seminar and course fees,12/05/2014,186138,120.00,Revenue income and expenditure,MBL Seminars Ltd,6246,1,VO,201402,LS00,P1,
B,Bromsgrove District Council,Planning and Development Services,Sustainable development strategies,Supplies and Services,Services,D47,Consultants' fees,12/05/2014,186139,648.00,Revenue income and expenditure,HELEN WILSON ASSOCIATES LTD,10701,1,VO,201402,LP06,P1,
B,Bromsgrove District Council,Central Services to the Public,Conducting Elections,Supplies and Services,Communication and computing,D51,Printing and stationery,12/05/2014,186140,8.07,Revenue income and expenditure,West Mercia Supplies,1703,1,VO,201402,EL11,P1,
B,Bromsgrove District Council,Central Services to the Public,Conducting Elections,Supplies and Services,Miscellaneous expenses,D82,Non reclaimable VAT,12/05/2014,186140,2.15,Revenue income and expenditure,West Mercia Supplies,1703,1,VO,201402,EL13,0,
B,Bromsgrove District Council,Central Services to the Public,Conducting Elections,Supplies and Services,Communication and computing,D51,Printing and stationery,12/05/2014,186140,8.07,Revenue income and expenditure,West Mercia Supplies,1703,1,VO,201402,EL10,P1,
B,Bromsgrove District Council,Central Services to the Public,Conducting Elections,Supplies and Services,Communication and computing,D51,Printing and stationery,12/05/2014,186140,26.90,Revenue income and expenditure,West Mercia Supplies,1703,1,VO,201402,EL05,N1,
B,Bromsgrove District Council,Central Services to the Public,Conducting Elections,Supplies and Services,Miscellaneous expenses,D82,Non reclaimable VAT,12/05/2014,186140,5.38,Revenue income and expenditure,West Mercia Supplies,1703,1,VO,201402,EL05,0,
B,Bromsgrove District Council,Central Services to the Public,Conducting Elections,Supplies and Services,Communication and computing,D51,Printing and stationery,12/05/2014,186140,10.76,Revenue income and expenditure,West Mercia Supplies,1703,1,VO,201402,EL13,N1,
B,Bromsgrove District Council,General Fund Housing Services,Housing Strategy,Supplies and Services,Services,D47,Consultants' fees,12/05/2014,186141,130.00,Revenue income and expenditure,A. Victor Powell,2547,1,VO,201402,HG21,P1,
B,Bromsgrove District Council,Surpluses/deficits on trading undertakings,Depot Services,Transport Related Expenditure,Contract Hire and operating leases,C31,Contract hire of vehicles,20/05/2014,186142,510.00,Revenue income and expenditure,Gulliver's Truck Hire Ltd,10600,1,VO,201402,DW14,P1,
B,Bromsgrove District Council,Not BVACOP Service,Not BVACOP Sub Division,Current Assets,Stocks,300,Stock Movement,12/05/2014,186145,204.00,,Egbert H Taylor & Co Ltd,1210,2,VO,201402,XX611,P1,
B,Bromsgrove District Council,Highways and transport services,Off-street Parking,Supplies and Services,Miscellaneous expenses,D88,Miscellaneous expenses,13/05/2014,186146,180.88,Revenue income and expenditure,British Parking Association,3909,1,VO,201402,CP00,P1,
B,Bromsgrove District Council,Surpluses/deficits on trading undertakings,Depot Services,Supplies and Services,Miscellaneous expenses,D88,Miscellaneous expenses,12/05/2014,186147,68.88,Revenue income and expenditure,Mercia Waste Management Ltd,1433,1,VO,201402,DW32,P1,
B,Bromsgrove District Council,Not BVACOP Service,Not BVACOP Sub Division,Current Assets,Stocks,300,Stock Movement,12/05/2014,186148,14.40,,Wurth UK Ltd,10087,1,VO,201402,XX611,P1,
B,Bromsgrove District Council,Not BVACOP Service,Not BVACOP Sub Division,Current Assets,Stocks,300,Stock Movement,12/05/2014,186149,87.58,,Wurth UK Ltd,10087,1,VO,201402,XX611,P1,
B,Bromsgrove District Council,Surpluses/deficits on trading undertakings,Depot Services,Supplies and Services,"Equipment, furniture and materials",D06,Materials - purchased,12/05/2014,186149,22.00,Revenue income and expenditure,Wurth UK Ltd,10087,1,VO,201402,DT41,P1,
B,Bromsgrove District Council,Surpluses/deficits on trading undertakings,Internal Business Units and Support Services,Supplies and Services,Communication and computing,D57,Computer - software,12/05/2014,186150,"1,416.32",Revenue income and expenditure,Vodafone Ltd,9580,1,VO,201402,IT12,P1,
B,Bromsgrove District Council,Surpluses/deficits on trading undertakings,Internal Business Units and Support Services,Supplies and Services,Communication and computing,D56,Computer - hardware,12/05/2014,186151,"1,200.00",Revenue income and expenditure,Prestige Systems Ltd.,8836,1,VO,201402,IT10,P1,
B,Bromsgrove District Council,Surpluses/deficits on trading undertakings,Internal Business Units and Support Services,Supplies and Services,Communication and computing,D56,Computer - hardware,12/05/2014,186151,"1,200.00",Revenue income and expenditure,Prestige Systems Ltd.,8836,1,VO,201402,IT12,P1,
B,Bromsgrove District Council,Surpluses/deficits on trading undertakings,Depot Services,Supplies and Services,"Equipment, furniture and materials",D03,Equipment - rental/lease,12/05/2014,186152,51.15,Revenue income and expenditure,Safety Kleen UK Ltd,1564,1,VO,201402,DT41,P1,
B,Bromsgrove District Council,Cultural and Related Services,Museums and Gallaries,Supplies and Services,Services,D47,Consultants' fees,12/05/2014,186153,"1,100.00",Revenue income and expenditure,Bradley Environmental Consultants,1082,1,VO,201402,MT91,P1,
B,Bromsgrove District Council,Surpluses/deficits on trading undertakings,Internal Business Units and Support Services,Third Party Payments,Other Local authorities,E31,Other local authorities,12/05/2014,186154,"12,271.00",Revenue income and expenditure,Worcester City Council,1138,5,VO,201402,AU00,P4,
B,Bromsgrove District Council,Not BVACOP Service,Not BVACOP Sub Division,Current Assets,Stocks,300,Stock Movement,12/05/2014,186155,100.00,,Focal Image,1252,1,VO,201402,XX611,P1,
B,Bromsgrove District Council,Surpluses/deficits on trading undertakings,Depot Services,Transport Related Expenditure,Direct Transport Costs,C01,Vehicle repairs/maint'ce,12/05/2014,186156,204.28,Revenue income and expenditure,Dennis Eagle Ltd,1191,1,VO,201402,DW11,P1,
B,Bromsgrove District Council,Surpluses/deficits on trading undertakings,Internal Business Units and Support Services,Supplies and Services,Communication and computing,D56,Computer - hardware,12/05/2014,186157,169.00,Revenue income and expenditure,Probrand Limited,9439,1,VO,201402,IT12,P1,
B,Bromsgrove District Council,Surpluses/deficits on trading undertakings,Internal Business Units and Support Services,Supplies and Services,Communication and computing,D56,Computer - hardware,12/05/2014,186157,169.00,Revenue income and expenditure,Probrand Limited,9439,1,VO,201402,IT10,P1,
B,Bromsgrove District Council,Surpluses/deficits on trading undertakings,Depot Services,Transport Related Expenditure,Contract Hire and operating leases,C31,Contract hire of vehicles,22/05/2014,186158,850.00,Revenue income and expenditure,Gulliver's Truck Hire Ltd,10600,1,VO,201402,DW14,P1,
B,Bromsgrove District Council,Surpluses/deficits on trading undertakings,Depot Services,Transport Related Expenditure,Contract Hire and operating leases,C31,Contract hire of vehicles,22/05/2014,186159,850.00,Revenue income and expenditure,Gulliver's Truck Hire Ltd,10600,1,VO,201402,DW14,P1,
B,Bromsgrove District Council,Surpluses/deficits on trading undertakings,Depot Services,Transport Related Expenditure,Contract Hire and operating leases,C31,Contract hire of vehicles,22/05/2014,186160,165.00,Revenue income and expenditure,Gulliver's Truck Hire Ltd,10600,1,VO,201402,DW21,P1,
B,Bromsgrove District Council,Surpluses/deficits on trading undertakings,Depot Services,Supplies and Services,"Equipment, furniture and materials",D02,Equipment - maintenance,22/05/2014,186161,52.40,Revenue income and expenditure,Berendsen UK Ltd,9560,1,VO,201402,DP02,P1,
B,Bromsgrove District Council,Surpluses/deficits on trading undertakings,Depot Services,Supplies and Services,"Equipment, furniture and materials",D03,Equipment - rental/lease,22/05/2014,186161,160.30,Revenue income and expenditure,Berendsen UK Ltd,9560,1,VO,201402,DP02,P1,
B,Bromsgrove District Council,Surpluses/deficits on trading undertakings,Depot Services,Supplies and Services,"Equipment, furniture and materials",D03,Equipment - rental/lease,22/05/2014,186161,429.65,Revenue income and expenditure,Berendsen UK Ltd,9560,1,VO,201402,DT41,P1,
B,Bromsgrove District Council,Surpluses/deficits on trading undertakings,Depot Services,Supplies and Services,Communication and computing,D53,Postage/packaging,16/05/2014,186163,3.50,Revenue income and expenditure,Scarab Sweepers Ltd,5827,1,VO,201402,DW21,P1,
B,Bromsgrove District Council,Surpluses/deficits on trading undertakings,Depot Services,Transport Related Expenditure,Direct Transport Costs,C01,Vehicle repairs/maint'ce,16/05/2014,186163,37.60,Revenue income and expenditure,Scarab Sweepers Ltd,5827,1,VO,201402,DW21,P1,
B,Bromsgrove District Council,Cultural and Related Services,Community parks and open spaces,Premise Related Expenditure,"Repairs, alterations and maint. of buildings",B04,Repair/maint'ce (CIS tax deductible),13/05/2014,186165,70.00,Revenue income and expenditure,PJA Electrics  Ltd,2892,2,VO,201402,SP01,P1,
B,Bromsgrove District Council,Cultural and Related Services,Community parks and open spaces,Premise Related Expenditure,Fixtures and Fittings,B63,Internal fixtures/fittings - maint'ce,13/05/2014,186165,0.00,Revenue income and expenditure,PJA Electrics  Ltd,2892,2,VO,201402,SP01,P1,
B,Bromsgrove District Council,Central Services to the Public,Conducting Elections,Supplies and Services,Miscellaneous expenses,D82,Non reclaimable VAT,12/05/2014,186166,19.56,Revenue income and expenditure,Shaw & Sons Ltd,1579,1,VO,201402,EL13,0,
B,Bromsgrove District Council,Central Services to the Public,Conducting Elections,Supplies and Services,Communication and computing,D51,Printing and stationery,12/05/2014,186166,45.00,Revenue income and expenditure,Shaw & Sons Ltd,1579,1,VO,201402,EL05,N1,
B,Bromsgrove District Council,Central Services to the Public,Conducting Elections,Supplies and Services,Communication and computing,D51,Printing and stationery,12/05/2014,186166,15.00,Revenue income and expenditure,Shaw & Sons Ltd,1579,1,VO,201402,EL10,P1,
B,Bromsgrove District Council,Central Services to the Public,Conducting Elections,Supplies and Services,Miscellaneous expenses,D82,Non reclaimable VAT,12/05/2014,186166,9.00,Revenue income and expenditure,Shaw & Sons Ltd,1579,1,VO,201402,EL05,0,
B,Bromsgrove District Council,Central Services to the Public,Conducting Elections,Supplies and Services,Communication and computing,D51,Printing and stationery,12/05/2014,186166,97.80,Revenue income and expenditure,Shaw & Sons Ltd,1579,1,VO,201402,EL13,N1,
B,Bromsgrove District Council,Central Services to the Public,Conducting Elections,Supplies and Services,Communication and computing,D51,Printing and stationery,12/05/2014,186166,15.00,Revenue income and expenditure,Shaw & Sons Ltd,1579,1,VO,201402,EL11,P1,
B,Bromsgrove District Council,,,Supplies and Services,Communication and computing,D51,Printing and stationery,12/05/2014,186167,71.70,Revenue income and expenditure,Automail Envelopes Limited,3876,1,VO,201402,RB10,P1,
B,Bromsgrove District Council,Surpluses/deficits on trading undertakings,Internal Business Units and Support Services,Supplies and Services,Communication and computing,D56,Computer - hardware,12/05/2014,186168,164.34,Revenue income and expenditure,Black Box Network Services UK Ltd,8951,1,VO,201402,IT10,P1,
B,Bromsgrove District Council,Surpluses/deficits on trading undertakings,Internal Business Units and Support Services,Supplies and Services,Communication and computing,D56,Computer - hardware,12/05/2014,186168,164.35,Revenue income and expenditure,Black Box Network Services UK Ltd,8951,1,VO,201402,IT12,P1,
B,Bromsgrove District Council,Surpluses/deficits on trading undertakings,Depot Services,Supplies and Services,"Equipment, furniture and materials",D06,Materials - purchased,12/05/2014,186169,700.00,Revenue income and expenditure,Egbert H Taylor & Co Ltd,1210,2,VO,201402,DW14,P1,
B,Bromsgrove District Council,,,Supplies and Services,Services,D48,Contractors' fees/charges/SLA's,08/05/2014,186172,"7,722.00",Revenue income and expenditure,Royal Voluntary Service,3733,1,VN,201402,CM21,P4,
B,Bromsgrove District Council,Planning and Development Services,Sustainable development strategies,Supplies and Services,Services,D47,Consultants' fees,08/05/2014,186173,"1,107.00",Revenue income and expenditure,HELEN WILSON ASSOCIATES LTD,10701,1,VO,201402,LP06,P1,
B,Bromsgrove District Council,Planning and Development Services,Advice,Employees,Direct Employee Expenses,A10,Agency workers,08/05/2014,186174,"2,179.60",Revenue income and expenditure,Jane Fray,10388,1,VO,201402,DC00,P4,
B,Bromsgrove District Council,Not BVACOP Service,Not BVACOP Sub Division,Capital Expenditure,"Plant, vehicles and equipment",X22,Computer equipment etc.,16/05/2014,186176,"13,530.00",Capital income and expenditure,Redditch Borough Council,1533,5,VN,201402,CAPE,P1,
B,Bromsgrove District Council,Environmental Services,Cemeteries,Supplies and Services,Miscellaneous expenses,D99,Workflow only - must change code before saving,14/05/2014,186177,41.94,Revenue income and expenditure,Severn Trent Water Ltd,2416,1,VN,201402,CE01,P4,
B,Bromsgrove District Council,Environmental Services,Cemeteries,Supplies and Services,Miscellaneous expenses,D99,Workflow only - must change code before saving,14/05/2014,186178,21.99,Revenue income and expenditure,Severn Trent Water Ltd,2416,1,VN,201402,CE01,P4,
B,Bromsgrove District Council,Environmental Services,Cemeteries,Premise Related Expenditure,Water Services,B51,Water charges,14/05/2014,186179,83.62,Revenue income and expenditure,Severn Trent Water Ltd,2416,1,VN,201402,CE01,P4,
B,Bromsgrove District Council,Surpluses/deficits on trading undertakings,Depot Services,Supplies and Services,Communication and computing,D53,Postage/packaging,14/05/2014,186180,"3,495.00",Revenue income and expenditure,Royal Mail Group Plc,1558,1,VN,201402,CD20,P1,
B,Bromsgrove District Council,,,Employees,Direct Employee Expenses,A10,Agency workers,20/05/2014,186189,830.70,Revenue income and expenditure,Morgan Hunt UK Ltd,9519,1,VN,201402,RB10,P1,
B,Bromsgrove District Council,Surpluses/deficits on trading undertakings,Internal Business Units and Support Services,Supplies and Services,Communication and computing,D51,Printing and stationery,21/05/2014,186190,2.99,Revenue income and expenditure,Office Depot UK Ltd,6249,1,VN,201402,IT12,P1,
B,Bromsgrove District Council,Surpluses/deficits on trading undertakings,Internal Business Units and Support Services,Supplies and Services,Communication and computing,D51,Printing and stationery,21/05/2014,186190,34.02,Revenue income and expenditure,Office Depot UK Ltd,6249,1,VN,201402,PS01,P1,
B,Bromsgrove District Council,,,Third Party Payments,Other Local authorities,E33,Shared Service Expend - RBC,21/05/2014,186191,"5,365.13",Revenue income and expenditure,Redditch Borough Council,1533,5,VN,201402,RB10,P1,
B,Bromsgrove District Council,,,Third Party Payments,Other Local authorities,E33,Shared Service Expend - RBC,21/05/2014,186191,"5,262.42",Revenue income and expenditure,Redditch Borough Council,1533,5,VN,201402,RB02,P1,
B,Bromsgrove District Council,Surpluses/deficits on trading undertakings,Depot Services,Employees,Direct Employee Expenses,A10,Agency workers,27/05/2014,186194,"4,959.17",Revenue income and expenditure,MatrixSCM Ltd,9043,1,VN,201402,DW11,P1,
B,Bromsgrove District Council,Surpluses/deficits on trading undertakings,Depot Services,Employees,Direct Employee Expenses,A10,Agency workers,27/05/2014,186194,"2,979.86",Revenue income and expenditure,MatrixSCM Ltd,9043,1,VN,201402,DW21,P1,
B,Bromsgrove District Council,Planning and Development Services,Advice,Employees,Direct Employee Expenses,A10,Agency workers,27/05/2014,186194,"1,311.44",Revenue income and expenditure,MatrixSCM Ltd,9043,1,VN,201402,DC00,P1,
B,Bromsgrove District Council,Surpluses/deficits on trading undertakings,Internal Business Units and Support Services,Third Party Payments,Other Local authorities,E31,Other local authorities,14/05/2014,186196,"3,359.18",Revenue income and expenditure,Worcestershire County Council,1759,5,VN,201402,VS00,P1,
B,Bromsgrove District Council,Surpluses/deficits on trading undertakings,Internal Business Units and Support Services,Supplies and Services,Communication and computing,D76,WAN links,16/05/2014,186198,"2,614.39",Revenue income and expenditure,British Telecommunications plc,1098,1,VN,201402,IT10,P1,
B,Bromsgrove District Council,Surpluses/deficits on trading undertakings,Internal Business Units and Support Services,Supplies and Services,Communication and computing,D76,WAN links,16/05/2014,186198,"2,614.38",Revenue income and expenditure,British Telecommunications plc,1098,1,VN,201402,IT12,P1,
B,Bromsgrove District Council,Highways and transport services,Off-street Parking,Supplies and Services,Communication and computing,D77,Internet,14/05/2014,186199,"1,397.50",Revenue income and expenditure,British Telecommunications plc,1098,1,VN,201402,CP00,P1,
B,Bromsgrove District Council,Surpluses/deficits on trading undertakings,Depot Services,Supplies and Services,"Equipment, furniture and materials",D02,Equipment - maintenance,21/05/2014,186200,-142.44,Revenue income and expenditure,Berendsen UK Ltd,9560,1,CN,201402,DT41,P1,
B,Bromsgrove District Council,Surpluses/deficits on trading undertakings,Depot Services,Supplies and Services,"Equipment, furniture and materials",D02,Equipment - maintenance,21/05/2014,186201,-120.64,Revenue income and expenditure,Berendsen UK Ltd,9560,1,CN,201402,DT41,P1,
B,Bromsgrove District Council,Surpluses/deficits on trading undertakings,Depot Services,Transport Related Expenditure,Direct Transport Costs,C01,Vehicle repairs/maint'ce,21/05/2014,186202,-524.04,Revenue income and expenditure,Dennis Eagle Ltd,1191,1,CN,201402,DW14,P1,
B,Bromsgrove District Council,,,Supplies and Services,Miscellaneous expenses,D88,Miscellaneous expenses,22/05/2014,186203,-18.72,Revenue income and expenditure,G4S Cash Solutions UK Ltd.,9753,1,CN,201402,CC01,P1,
B,Bromsgrove District Council,Surpluses/deficits on trading undertakings,Depot Services,Transport Related Expenditure,Direct Transport Costs,C01,Vehicle repairs/maint'ce,14/05/2014,186204,961.50,Revenue income and expenditure,WasteParts UK Ltd,6508,1,VO,201402,DW18,P1,
B,Bromsgrove District Council,Environmental Services,Cemeteries,Supplies and Services,Services,D48,Contractors' fees/charges/SLA's,14/05/2014,186205,630.00,Revenue income and expenditure,Peter Price,7730,1,VO,201402,CE01,P4,
B,Bromsgrove District Council,Not BVACOP Service,Not BVACOP Sub Division,Capital Expenditure,Operational Land and Buildings,X04,Other contract payments,14/05/2014,186206,770.00,Capital income and expenditure,SPORTS TURF RESEARCH INSTITUTE,10675,3,VO,201402,CAPC,P1,
B,Bromsgrove District Council,Planning and Development Services,Advice,Supplies and Services,Services,D47,Consultants' fees,19/05/2014,186207,678.75,Revenue income and expenditure,Kernon Countryside Consultants,1381,1,VO,201402,DC00,P1,
B,Bromsgrove District Council,Not BVACOP Service,Not BVACOP Sub Division,Capital Expenditure,"Plant, vehicles and equipment",X21,Equipment (incl. heavy plant),14/05/2014,186212,"13,149.50",Capital income and expenditure,Tecalemit Garage Equipment Co Ltd,10671,1,VO,201402,CAPS,P1,
B,Bromsgrove District Council,Surpluses/deficits on trading undertakings,Depot Services,Supplies and Services,Communication and computing,D53,Postage/packaging,14/05/2014,186213,21.50,Revenue income and expenditure,Mercian Lifting Gear Limited,1435,1,VO,201402,DT41,P1,
B,Bromsgrove District Council,Surpluses/deficits on trading undertakings,Depot Services,Supplies and Services,"Equipment, furniture and materials",D01,Equipment - purchase,14/05/2014,186213,315.30,Revenue income and expenditure,Mercian Lifting Gear Limited,1435,1,VO,201402,DT41,P1,
B,Bromsgrove District Council,Not BVACOP Service,Not BVACOP Sub Division,Current Assets,Stocks,300,Stock Movement,20/05/2014,186217,61.00,,Imperial Commercials Ltd. (Bristol),1403,1,VO,201402,XX611,P1,
B,Bromsgrove District Council,Surpluses/deficits on trading undertakings,Depot Services,Supplies and Services,"Equipment, furniture and materials",D03,Equipment - rental/lease,22/05/2014,186218,76.99,Revenue income and expenditure,Air Liquide Limited,1407,1,VO,201402,DT41,P1,
B,Bromsgrove District Council,Surpluses/deficits on trading undertakings,Depot Services,Supplies and Services,"Equipment, furniture and materials",D06,Materials - purchased,20/05/2014,186219,984.00,Revenue income and expenditure,Rigby Taylor Ltd,1546,1,VO,201402,DW32,P1,
B,Bromsgrove District Council,Surpluses/deficits on trading undertakings,Depot Services,Supplies and Services,"Equipment, furniture and materials",D06,Materials - purchased,20/05/2014,186220,16.16,Revenue income and expenditure,Arco Ltd,1027,1,VO,201402,DW32,P1,
B,Bromsgrove District Council,Surpluses/deficits on trading undertakings,Internal Business Units and Support Services,Supplies and Services,Communication and computing,D57,Computer - software,28/05/2014,186221,"36,147.93",Revenue income and expenditure,Insight Direct (UK) Ltd,1350,1,VO,201402,IT10,P1,
B,Bromsgrove District Council,Surpluses/deficits on trading undertakings,Internal Business Units and Support Services,Supplies and Services,Communication and computing,D57,Computer - software,28/05/2014,186221,"36,147.93",Revenue income and expenditure,Insight Direct (UK) Ltd,1350,1,VO,201402,IT12,P1,
B,Bromsgrove District Council,,,Supplies and Services,Services,D48,Contractors' fees/charges/SLA's,22/05/2014,186224,"7,010.00",Revenue income and expenditure,Act on Energy,8185,1,VO,201402,HM18,P1,
B,Bromsgrove District Council,,,Supplies and Services,Services,D48,Contractors' fees/charges/SLA's,22/05/2014,186224,"1,625.00",Revenue income and expenditure,Act on Energy,8185,1,VO,201402,CM18,P1,
B,Bromsgrove District Council,General Fund Housing Services,Travellers Sites,Supplies and Services,Services,D48,Contractors' fees/charges/SLA's,20/05/2014,186225,150.00,Revenue income and expenditure,Redditch Sports Turf Services Ltd,9617,1,VO,201402,HG02,P1,
B,Bromsgrove District Council,Surpluses/deficits on trading undertakings,Internal Business Units and Support Services,Supplies and Services,Grants and subscriptions,D73,Contributions,20/05/2014,186228,"1,240.00",Revenue income and expenditure,The Stroke Association,10676,1,VO,201402,LS05,P4,
B,Bromsgrove District Council,Surpluses/deficits on trading undertakings,Internal Business Units and Support Services,Supplies and Services,Communication and computing,D56,Computer - hardware,22/05/2014,186229,44.25,Revenue income and expenditure,Probrand Limited,9439,1,VO,201402,IT12,P1,
B,Bromsgrove District Council,Surpluses/deficits on trading undertakings,Depot Services,Supplies and Services,Communication and computing,D56,Computer - hardware,22/05/2014,186229,362.00,Revenue income and expenditure,Probrand Limited,9439,1,VO,201402,DP02,P1,
B,Bromsgrove District Council,Surpluses/deficits on trading undertakings,Internal Business Units and Support Services,Supplies and Services,Communication and computing,D56,Computer - hardware,22/05/2014,186229,44.25,Revenue income and expenditure,Probrand Limited,9439,1,VO,201402,IT10,P1,
B,Bromsgrove District Council,Not BVACOP Service,Not BVACOP Sub Division,Current Assets,Stocks,300,Stock Movement,20/05/2014,186231,62.00,,Truckstop Hawkes (Egglaroy Ltd T/A),6329,1,VO,201402,XX611,P1,
B,Bromsgrove District Council,Surpluses/deficits on trading undertakings,Depot Services,Premise Related Expenditure,"Repairs, alterations and maint. of buildings",B03,Internal repair/maint. (reg'd for gross pay't),22/05/2014,186232,447.00,Revenue income and expenditure,C'NC Doors,2788,1,VO,201402,DT41,P1,
B,Bromsgrove District Council,Planning and Development Services,Grants,Supplies and Services,Grants and subscriptions,D71,Grants,14/05/2014,186237,"39,929.60",Revenue income and expenditure,Bromsgrove & District C.A.B,2433,1,VO,201402,GG01,P4,
B,Bromsgrove District Council,General Fund Housing Services,,Supplies and Services,Services,D47,Consultants' fees,14/05/2014,186238,"10,073.27",Revenue income and expenditure,Bromsgrove & District C.A.B,2433,1,VO,201402,HG24,P4,
B,Bromsgrove District Council,Not BVACOP Service,Not BVACOP Sub Division,Current Assets,Stocks,300,Stock Movement,20/05/2014,186239,93.00,,Truckstop Hawkes (Egglaroy Ltd T/A),6329,1,VO,201402,XX611,P1,
B,Bromsgrove District Council,Not BVACOP Service,Not BVACOP Sub Division,Capital Expenditure,"Plant, vehicles and equipment",X21,Equipment (incl. heavy plant),20/05/2014,186240,"1,557.60",Capital income and expenditure,Craemer  UK Limited,2583,1,VO,201402,CAPS,P1,
B,Bromsgrove District Council,Environmental Services,Public Health,Supplies and Services,Miscellaneous expenses,D87,Marketing/promotion/publicity,20/05/2014,186241,170.00,Revenue income and expenditure,Newsquest (Midlands South) Ltd,1464,1,VO,201402,EH02,P1,
B,Bromsgrove District Council,Environmental Services,Cemeteries,Supplies and Services,"Equipment, furniture and materials",D06,Materials - purchased,23/05/2014,186243,239.94,Revenue income and expenditure,Countrywide Farmers,4566,1,VO,201402,CE01,P4,
B,Bromsgrove District Council,Surpluses/deficits on trading undertakings,Internal Business Units and Support Services,Supplies and Services,Communication and computing,D52,Books and publications,20/05/2014,186244,"12,260.01",Revenue income and expenditure,Sweet & Maxwell Ltd,1626,1,VO,201402,LS00,P1,
B,Bromsgrove District Council,Not BVACOP Service,Not BVACOP Sub Division,Current Assets,Stocks,300,Stock Movement,20/05/2014,186245,208.81,,Wurth UK Ltd,10087,1,VO,201402,XX611,P1,
B,Bromsgrove District Council,Not BVACOP Service,Not BVACOP Sub Division,Current Assets,Stocks,300,Stock Movement,20/05/2014,186246,216.48,,Arco Ltd,1027,1,VO,201402,XX611,P1,
B,Bromsgrove District Council,Surpluses/deficits on trading undertakings,Depot Services,Transport Related Expenditure,Contract Hire and operating leases,C31,Contract hire of vehicles,29/05/2014,186247,543.14,Revenue income and expenditure,Gulliver's Truck Hire Ltd,10600,1,VO,201402,DW14,P1,
B,Bromsgrove District Council,Surpluses/deficits on trading undertakings,Depot Services,Transport Related Expenditure,Direct Transport Costs,C01,Vehicle repairs/maint'ce,20/05/2014,186248,68.00,Revenue income and expenditure,Fast Fit Nationwide Ltd,1236,1,VO,201402,DW21,P1,
B,Bromsgrove District Council,Surpluses/deficits on trading undertakings,Depot Services,Premise Related Expenditure,Cleaning and domestic supplies,B81,Cleaning and domestic supplies,22/05/2014,186249,588.00,Revenue income and expenditure,AM & PM Cleaning Solutions,6284,1,VO,201402,DP02,P4,
B,Bromsgrove District Council,Not BVACOP Service,Not BVACOP Sub Division,Current Assets,Stocks,300,Stock Movement,19/05/2014,186250,"1,652.88",,Focal Image,1252,1,VO,201402,XX611,P1,
B,Bromsgrove District Council,Not BVACOP Service,Not BVACOP Sub Division,Current Assets,Stocks,300,Stock Movement,19/05/2014,186251,518.40,,Focal Image,1252,1,VO,201402,XX611,P1,
B,Bromsgrove District Council,Surpluses/deficits on trading undertakings,Depot Services,Supplies and Services,"Equipment, furniture and materials",D06,Materials - purchased,19/05/2014,186251,9.75,Revenue income and expenditure,Focal Image,1252,1,VO,201402,DT41,P1,
B,Bromsgrove District Council,Not BVACOP Service,Not BVACOP Sub Division,Current Assets,Stocks,300,Stock Movement,19/05/2014,186252,145.20,,Focal Image,1252,1,VO,201402,XX611,P1,
B,Bromsgrove District Council,Surpluses/deficits on trading undertakings,Depot Services,Supplies and Services,"Clothes, uniform and laundry",D31,Clothing and uniforms,19/05/2014,186252,13.00,Revenue income and expenditure,Focal Image,1252,1,VO,201402,DS62,P1,
B,Bromsgrove District Council,Not BVACOP Service,Not BVACOP Sub Division,Current Assets,Stocks,300,Stock Movement,19/05/2014,186254,63.55,,Focal Image,1252,1,VO,201402,XX611,P1,
B,Bromsgrove District Council,Surpluses/deficits on trading undertakings,Internal Business Units and Support Services,Supplies and Services,Services,D42,Seminar and course fees,14/05/2014,186255,65.00,Revenue income and expenditure,No5 Chambers,2868,1,VO,201402,LS00,P1,
B,Bromsgrove District Council,,,Supplies and Services,Services,D49,Miscellaneous services,14/05/2014,186257,"9,150.00",Revenue income and expenditure,Bromsgrove District Housing Trust,2969,1,VO,201402,CM23,P4,
B,Bromsgrove District Council,,,Supplies and Services,Services,D43,Training fees,14/05/2014,186258,"1,025.00",Revenue income and expenditure,Worcestershire Health & Care NHS Trust,10714,1,VO,201402,CM20,P4,
B,Bromsgrove District Council,Surpluses/deficits on trading undertakings,Internal Business Units and Support Services,Supplies and Services,Communication and computing,D56,Computer - hardware,20/05/2014,186259,202.73,Revenue income and expenditure,Universal Smart Cards Limited,9818,1,VO,201402,IT10,P1,
B,Bromsgrove District Council,Surpluses/deficits on trading undertakings,Internal Business Units and Support Services,Supplies and Services,Communication and computing,D56,Computer - hardware,20/05/2014,186259,202.72,Revenue income and expenditure,Universal Smart Cards Limited,9818,1,VO,201402,IT12,P1,
B,Bromsgrove District Council,Surpluses/deficits on trading undertakings,Internal Business Units and Support Services,Supplies and Services,Grants and subscriptions,D73,Contributions,19/05/2014,186260,"1,000.00",Revenue income and expenditure,Age UK Bromsgrove and District,10169,1,VO,201402,LS05,P4,
B,Bromsgrove District Council,Surpluses/deficits on trading undertakings,Internal Business Units and Support Services,Supplies and Services,Communication and computing,D51,Printing and stationery,19/05/2014,186262,"1,253.52",Revenue income and expenditure,Hague Computer Supplies,1291,1,VO,201402,PS01,P1,
B,Bromsgrove District Council,Planning and Development Services,Advice,Supplies and Services,Communication and computing,D54,Advertising (general),14/05/2014,186263,267.32,Revenue income and expenditure,TMP (UK) Ltd,1646,1,VO,201402,DC00,P1,
B,Bromsgrove District Council,Planning and Development Services,Advice,Supplies and Services,Communication and computing,D54,Advertising (general),14/05/2014,186264,267.32,Revenue income and expenditure,TMP (UK) Ltd,1646,1,VO,201402,DC00,P1,
B,Bromsgrove District Council,Planning and Development Services,Advice,Supplies and Services,Communication and computing,D54,Advertising (general),14/05/2014,186265,312.27,Revenue income and expenditure,TMP (UK) Ltd,1646,1,VO,201402,DC00,P1,
B,Bromsgrove District Council,Highways and transport services,Off-street Parking,Premise Related Expenditure,"Repairs, alterations and maint. of buildings",B03,Internal repair/maint. (reg'd for gross pay't),28/05/2014,186267,290.46,Revenue income and expenditure,Thyssenkrupp Elevator UK Ltd,3658,1,VO,201402,CP01,P1,
B,Bromsgrove District Council,Surpluses/deficits on trading undertakings,Depot Services,Supplies and Services,"Equipment, furniture and materials",D02,Equipment - maintenance,22/05/2014,186269,240.00,Revenue income and expenditure,Pressure Coolers Trading as Maestro International,9070,1,VO,201402,DP02,P1,
B,Bromsgrove District Council,Not BVACOP Service,Not BVACOP Sub Division,Current Assets,Stocks,300,Stock Movement,14/05/2014,186271,964.00,,Scarab Sweepers Ltd,5827,1,VO,201402,XX611,P1,
B,Bromsgrove District Council,Surpluses/deficits on trading undertakings,Depot Services,Premise Related Expenditure,"Repairs, alterations and maint. of buildings",B02,External repair/maint. (reg'd for gross pay't),14/05/2014,186274,225.00,Revenue income and expenditure,Associated Electrical Limited,10378,1,VO,201402,DT41,P1,
B,Bromsgrove District Council,Surpluses/deficits on trading undertakings,Depot Services,Transport Related Expenditure,Direct Transport Costs,C01,Vehicle repairs/maint'ce,19/05/2014,186276,81.50,Revenue income and expenditure,Imperial Commercials Ltd ( Derby),10589,1,VO,201402,DW18,P1,
B,Bromsgrove District Council,Surpluses/deficits on trading undertakings,Depot Services,Transport Related Expenditure,Direct Transport Costs,C01,Vehicle repairs/maint'ce,19/05/2014,186277,"2,107.00",Revenue income and expenditure,FAUN Municipal Vehicles Ltd,1455,1,VO,201402,DW11,P1,
B,Bromsgrove District Council,Surpluses/deficits on trading undertakings,Internal Business Units and Support Services,Premise Related Expenditure,Cleaning and domestic supplies,B83,Confidential waste disposal,19/05/2014,186279,105.00,Revenue income and expenditure,P.W. CommercialLtd T/A Printwaste,9614,1,VO,201402,ES20,P1,
B,Bromsgrove District Council,Surpluses/deficits on trading undertakings,Internal Business Units and Support Services,Supplies and Services,Communication and computing,D52,Books and publications,15/05/2014,186281,261.00,Revenue income and expenditure,Sweet & Maxwell Ltd,1626,1,VO,201402,LS00,0,
B,Bromsgrove District Council,Surpluses/deficits on trading undertakings,Internal Business Units and Support Services,Supplies and Services,Services,D47,Consultants' fees,14/05/2014,186282,"3,421.00",Revenue income and expenditure,Jeff Ligo,10704,1,VO,201402,LS06,P4,
B,Bromsgrove District Council,Surpluses/deficits on trading undertakings,Internal Business Units and Support Services,Supplies and Services,Communication and computing,D56,Computer - hardware,20/05/2014,186283,190.00,Revenue income and expenditure,Probrand Limited,9439,1,VO,201402,IT10,P1,
B,Bromsgrove District Council,Surpluses/deficits on trading undertakings,Internal Business Units and Support Services,Supplies and Services,Communication and computing,D56,Computer - hardware,20/05/2014,186283,190.00,Revenue income and expenditure,Probrand Limited,9439,1,VO,201402,IT12,P1,
B,Bromsgrove District Council,Not BVACOP Service,Not BVACOP Sub Division,Current Assets,Stocks,300,Stock Movement,19/05/2014,186284,127.00,,Bromsgrove Motor Factors,1091,1,VO,201402,XX611,P1,
B,Bromsgrove District Council,Surpluses/deficits on trading undertakings,Internal Business Units and Support Services,Supplies and Services,Communication and computing,D56,Computer - hardware,20/05/2014,186285,350.00,Revenue income and expenditure,Phoenix Software Ltd,2091,1,VO,201402,IT12,P1,
B,Bromsgrove District Council,Surpluses/deficits on trading undertakings,Internal Business Units and Support Services,Supplies and Services,Communication and computing,D56,Computer - hardware,20/05/2014,186285,350.00,Revenue income and expenditure,Phoenix Software Ltd,2091,1,VO,201402,IT10,P1,
B,Bromsgrove District Council,Not BVACOP Service,Not BVACOP Sub Division,Current Assets,Stocks,300,Stock Movement,19/05/2014,186286,95.70,,Bromsgrove Motor Factors,1091,1,VO,201402,XX611,P1,
B,Bromsgrove District Council,Environmental Services,Public Toilets,Supplies and Services,"Equipment, furniture and materials",D06,Materials - purchased,19/05/2014,186287,2.99,Revenue income and expenditure,Broad Street D.I.Y,1089,1,VO,201402,PC03,P1,
B,Bromsgrove District Council,Surpluses/deficits on trading undertakings,Depot Services,Supplies and Services,"Equipment, furniture and materials",D06,Materials - purchased,19/05/2014,186288,17.37,Revenue income and expenditure,Broad Street D.I.Y,1089,1,VO,201402,DP02,P1,
B,Bromsgrove District Council,Cultural and Related Services,Outdoor sports and recreation facilities,Supplies and Services,"Equipment, furniture and materials",D06,Materials - purchased,19/05/2014,186289,10.98,Revenue income and expenditure,Broad Street D.I.Y,1089,1,VO,201402,PA01,P1,
B,Bromsgrove District Council,Surpluses/deficits on trading undertakings,Depot Services,Supplies and Services,"Equipment, furniture and materials",D06,Materials - purchased,19/05/2014,186290,49.50,Revenue income and expenditure,Broad Street D.I.Y,1089,1,VO,201402,DP02,P1,
B,Bromsgrove District Council,Highways and transport services,Off-street Parking,Supplies and Services,"Equipment, furniture and materials",D06,Materials - purchased,19/05/2014,186291,5.80,Revenue income and expenditure,Broad Street D.I.Y,1089,1,VO,201402,CP00,P1,
B,Bromsgrove District Council,Surpluses/deficits on trading undertakings,Depot Services,Supplies and Services,"Equipment, furniture and materials",D06,Materials - purchased,19/05/2014,186291,29.99,Revenue income and expenditure,Broad Street D.I.Y,1089,1,VO,201402,DP02,P1,
B,Bromsgrove District Council,Cultural and Related Services,Outdoor sports and recreation facilities,Supplies and Services,"Equipment, furniture and materials",D06,Materials - purchased,19/05/2014,186292,2.56,Revenue income and expenditure,Broad Street D.I.Y,1089,1,VO,201402,PA01,P1,
B,Bromsgrove District Council,Environmental Services,Cemeteries,Supplies and Services,"Equipment, furniture and materials",D06,Materials - purchased,19/05/2014,186293,157.46,Revenue income and expenditure,Broad Street D.I.Y,1089,1,VO,201402,CE01,P1,
B,Bromsgrove District Council,Not BVACOP Service,Not BVACOP Sub Division,Current Assets,Stocks,300,Stock Movement,19/05/2014,186294,24.76,,Broad Street D.I.Y,1089,1,VO,201402,XX611,P1,
B,Bromsgrove District Council,Cultural and Related Services,Outdoor sports and recreation facilities,Supplies and Services,"Equipment, furniture and materials",D06,Materials - purchased,19/05/2014,186295,3.37,Revenue income and expenditure,Broad Street D.I.Y,1089,1,VO,201402,PA01,P1,
B,Bromsgrove District Council,Surpluses/deficits on trading undertakings,Internal Business Units and Support Services,Supplies and Services,Communication and computing,D56,Computer - hardware,28/05/2014,186296,"5,556.00",Revenue income and expenditure,Phoenix Software Ltd,2091,1,VO,201402,IT12,P1,
B,Bromsgrove District Council,Surpluses/deficits on trading undertakings,Internal Business Units and Support Services,Supplies and Services,Communication and computing,D56,Computer - hardware,28/05/2014,186296,"6,104.51",Revenue income and expenditure,Phoenix Software Ltd,2091,1,VO,201402,IT10,P1,
B,Bromsgrove District Council,Environmental Services,Cemeteries,Transport Related Expenditure,Direct Transport Costs,C04,Petrol,28/05/2014,186300,65.01,Revenue income and expenditure,Phoenix Service Stations Ltd,6831,1,VO,201402,CE01,P1,
B,Bromsgrove District Council,Surpluses/deficits on trading undertakings,Depot Services,Transport Related Expenditure,Direct Transport Costs,C04,Petrol,28/05/2014,186300,26.89,Revenue income and expenditure,Phoenix Service Stations Ltd,6831,1,VO,201402,DS62,P1,
B,Bromsgrove District Council,Surpluses/deficits on trading undertakings,Depot Services,Transport Related Expenditure,Direct Transport Costs,C04,Petrol,28/05/2014,186300,254.72,Revenue income and expenditure,Phoenix Service Stations Ltd,6831,1,VO,201402,DW32,P1,
B,Bromsgrove District Council,Cultural and Related Services,Outdoor sports and recreation facilities,Transport Related Expenditure,Direct Transport Costs,C04,Petrol,28/05/2014,186300,4.96,Revenue income and expenditure,Phoenix Service Stations Ltd,6831,1,VO,201402,PA01,P1,
B,Bromsgrove District Council,Environmental Services,Cemeteries,Transport Related Expenditure,Direct Transport Costs,C04,Petrol,28/05/2014,186301,92.31,Revenue income and expenditure,Phoenix Service Stations Ltd,6831,1,VO,201402,CE01,P1,
B,Bromsgrove District Council,Surpluses/deficits on trading undertakings,Depot Services,Transport Related Expenditure,Direct Transport Costs,C04,Petrol,28/05/2014,186301,"1,915.32",Revenue income and expenditure,Phoenix Service Stations Ltd,6831,1,VO,201402,DW32,P1,
B,Bromsgrove District Council,Surpluses/deficits on trading undertakings,Internal Business Units and Support Services,Supplies and Services,Communication and computing,D57,Computer - software,21/05/2014,186308,850.00,Revenue income and expenditure,Civica  UK Ltd,1526,1,VN,201402,LS00,P1,
B,Bromsgrove District Council,,,Employees,Direct Employee Expenses,A10,Agency workers,21/05/2014,186309,649.35,Revenue income and expenditure,Morgan Hunt UK Ltd,9519,1,VN,201402,RB10,P1,
B,Bromsgrove District Council,,,Supplies and Services,Communication and computing,D57,Computer - software,21/05/2014,186310,"2,110.99",Revenue income and expenditure,Experian Ltd,1903,1,VN,201402,RB03,P1,
B,Bromsgrove District Council,Environmental Services,Public Toilets,Premise Related Expenditure,Water Services,B51,Water charges,21/05/2014,186311,420.85,Revenue income and expenditure,Severn Trent Water Ltd,2416,1,VN,201402,PC03,P4,
B,Bromsgrove District Council,Highways and transport services,Off-street Parking,Third Party Payments,Other Local authorities,E31,Other local authorities,21/05/2014,186312,"1,377.60",Revenue income and expenditure,Wychavon District Council,1723,5,VN,201402,CP00,P4,
B,Bromsgrove District Council,Highways and transport services,Off-street Parking,Third Party Payments,Other Local authorities,E31,Other local authorities,21/05/2014,186312,"45,563.64",Revenue income and expenditure,Wychavon District Council,1723,5,VN,201402,CP00,P1,
B,Bromsgrove District Council,Central Services to the Public,Registration of Electors,Supplies and Services,Communication and computing,D53,Postage/packaging,21/05/2014,186314,43.03,Revenue income and expenditure,Royal Mail Group Plc,1558,1,VN,201402,EL00,P1,
B,Bromsgrove District Council,Central Services to the Public,Registration of Electors,Supplies and Services,Communication and computing,D53,Postage/packaging,21/05/2014,186314,5.16,Revenue income and expenditure,Royal Mail Group Plc,1558,1,VN,201402,EL00,P3,
B,Bromsgrove District Council,Cultural and Related Services,Allotments,Premise Related Expenditure,Water Services,B51,Water charges,23/05/2014,186315,28.23,Revenue income and expenditure,Severn Trent Water Ltd,2416,1,VN,201402,AL01,P4,
B,Bromsgrove District Council,Cultural and Related Services,Allotments,Premise Related Expenditure,Water Services,B51,Water charges,23/05/2014,186316,28.91,Revenue income and expenditure,Severn Trent Water Ltd,2416,1,VN,201402,AL01,P4,
B,Bromsgrove District Council,Cultural and Related Services,Allotments,Premise Related Expenditure,Water Services,B51,Water charges,23/05/2014,186317,21.23,Revenue income and expenditure,Severn Trent Water Ltd,2416,1,VN,201402,AL01,P4,
B,Bromsgrove District Council,Highways and transport services,Off-street Parking,Supplies and Services,Communication and computing,D50,Debt Collection Fees,21/05/2014,186318,1.75,Revenue income and expenditure,Bristow & Sutor,1085,1,VN,201402,CP00,P1,
B,Bromsgrove District Council,,,Supplies and Services,Communication and computing,D50,Debt Collection Fees,21/05/2014,186319,16.84,Revenue income and expenditure,Bristow & Sutor,1085,1,VN,201402,RB10,P1,
B,Bromsgrove District Council,,,Supplies and Services,Communication and computing,D50,Debt Collection Fees,21/05/2014,186320,30.63,Revenue income and expenditure,Bristow & Sutor,1085,1,VN,201402,RB10,P1,
B,Bromsgrove District Council,Surpluses/deficits on trading undertakings,Depot Services,Employees,Direct Employee Expenses,A10,Agency workers,28/05/2014,186321,"1,807.67",Revenue income and expenditure,MatrixSCM Ltd,9043,1,VN,201402,DW21,P1,
B,Bromsgrove District Council,Surpluses/deficits on trading undertakings,Depot Services,Employees,Direct Employee Expenses,A10,Agency workers,28/05/2014,186321,"4,448.61",Revenue income and expenditure,MatrixSCM Ltd,9043,1,VN,201402,DW11,P1,
B,Bromsgrove District Council,Planning and Development Services,Advice,Employees,Direct Employee Expenses,A10,Agency workers,28/05/2014,186321,572.13,Revenue income and expenditure,MatrixSCM Ltd,9043,1,VN,201402,DC00,P1,
B,Bromsgrove District Council,Surpluses/deficits on trading undertakings,Internal Business Units and Support Services,Supplies and Services,Communication and computing,D52,Books and publications,28/05/2014,186322,304.45,Revenue income and expenditure,LexisNexis Butterworths,1989,1,VO,201402,LS12,P4,
B,Bromsgrove District Council,Highways and transport services,Off-street Parking,Premise Related Expenditure,"Repairs, alterations and maint. of buildings",B02,External repair/maint. (reg'd for gross pay't),28/05/2014,186323,"1,595.00",Revenue income and expenditure,G.S. Adams Limited,5337,2,VO,201402,CP00,P1,
B,Bromsgrove District Council,Central Services to the Public,Registration of Electors,Supplies and Services,Miscellaneous expenses,D85,General expenses,28/05/2014,186327,95.79,Revenue income and expenditure,West Mercia Supplies,1703,1,VO,201402,EL00,P1,
B,Bromsgrove District Council,General Fund Housing Services,Homelessness Administration,Transfer Payments,Housing Benefits,F33,Housing benefit - council tax rebates,28/05/2014,186328,"2,907.69",Revenue income and expenditure,Bromsgrove District Housing Trust,2969,1,VO,201402,HG08,0,
B,Bromsgrove District Council,General Fund Housing Services,,Supplies and Services,Services,D49,Miscellaneous services,28/05/2014,186329,665.00,Revenue income and expenditure,Bromsgrove District Housing Trust,2969,1,VO,201402,HG52,P4,
B,Bromsgrove District Council,General Fund Housing Services,Homelessness Administration,Supplies and Services,Miscellaneous expenses,D89,Medical Expenses (BDHT),28/05/2014,186330,"2,014.98",Revenue income and expenditure,Bromsgrove District Housing Trust,2969,1,VO,201402,HG08,0,
B,Bromsgrove District Council,General Fund Housing Services,Homelessness Administration,Supplies and Services,Miscellaneous expenses,D88,Miscellaneous expenses,28/05/2014,186331,"1,305.46",Revenue income and expenditure,Bromsgrove District Housing Trust,2969,1,VO,201402,HG10,P4,
B,Bromsgrove District Council,General Fund Housing Services,Homelessness Administration,Premise Related Expenditure,Rents,B33,Bed-and-breakfast payments,28/05/2014,186332,246.64,Revenue income and expenditure,Bromsgrove District Housing Trust,2969,1,VO,201402,HG08,0,
B,Bromsgrove District Council,General Fund Housing Services,Hostels - non HRA support,Third Party Payments,Private Contractors,E72,BDHT - running costs reimbursed,28/05/2014,186333,"2,194.17",Revenue income and expenditure,Bromsgrove District Housing Trust,2969,1,VO,201402,HG18,P4,
B,Bromsgrove District Council,Not BVACOP Service,Not BVACOP Sub Division,Current Assets,Stocks,300,Stock Movement,28/05/2014,186334,253.10,,Focal Image,1252,1,VO,201402,XX611,P1,
B,Bromsgrove District Council,Surpluses/deficits on trading undertakings,Internal Business Units and Support Services,Supplies and Services,Communication and computing,D56,Computer - hardware,28/05/2014,186338,64.33,Revenue income and expenditure,Posturite (UK) Ltd,2078,1,VO,201402,IT00,P1,
B,Bromsgrove District Council,Not BVACOP Service,Not BVACOP Sub Division,Current Assets,Stocks,300,Stock Movement,28/05/2014,186340,"1,056.00",,Imperial Polythene Products Ltd,9972,1,VO,201402,XX611,P1,
B,Bromsgrove District Council,,,Supplies and Services,Miscellaneous expenses,D85,General expenses,28/05/2014,186346,272.52,Revenue income and expenditure,Worcestershire Medal Service Ltd,9438,1,VO,201402,CD61,P1,
B,Bromsgrove District Council,,,Supplies and Services,Miscellaneous expenses,D85,General expenses,28/05/2014,186347,30.00,Revenue income and expenditure,Worcestershire Medal Service Ltd,9438,1,VO,201402,CD61,P1,
B,Bromsgrove District Council,Not BVACOP Service,Not BVACOP Sub Division,Current Assets,Stocks,300,Stock Movement,28/05/2014,186348,290.00,,Watson Fuels,8732,1,VO,201402,XX611,P1,
B,Bromsgrove District Council,Surpluses/deficits on trading undertakings,Depot Services,Supplies and Services,"Equipment, furniture and materials",D06,Materials - purchased,28/05/2014,186349,100.00,Revenue income and expenditure,Watson Fuels,8732,1,VO,201402,DT41,P1,
B,Bromsgrove District Council,Central Services to the Public,Conducting Elections,Supplies and Services,Communication and computing,D51,Printing and stationery,28/05/2014,186350,8.38,Revenue income and expenditure,Office Depot UK Ltd,6249,1,VO,201402,EL13,N1,
B,Bromsgrove District Council,Central Services to the Public,Conducting Elections,Supplies and Services,Communication and computing,D51,Printing and stationery,28/05/2014,186350,8.38,Revenue income and expenditure,Office Depot UK Ltd,6249,1,VO,201402,EL10,P1,
B,Bromsgrove District Council,Central Services to the Public,Conducting Elections,Supplies and Services,Communication and computing,D51,Printing and stationery,28/05/2014,186350,25.13,Revenue income and expenditure,Office Depot UK Ltd,6249,1,VO,201402,EL05,N1,
B,Bromsgrove District Council,Central Services to the Public,Conducting Elections,Supplies and Services,Miscellaneous expenses,D82,Non reclaimable VAT,28/05/2014,186350,5.03,Revenue income and expenditure,Office Depot UK Ltd,6249,1,VO,201402,EL05,0,
B,Bromsgrove District Council,Central Services to the Public,Conducting Elections,Supplies and Services,Communication and computing,D51,Printing and stationery,28/05/2014,186350,8.37,Revenue income and expenditure,Office Depot UK Ltd,6249,1,VO,201402,EL11,P1,
B,Bromsgrove District Council,Central Services to the Public,Conducting Elections,Supplies and Services,Miscellaneous expenses,D82,Non reclaimable VAT,28/05/2014,186350,1.68,Revenue income and expenditure,Office Depot UK Ltd,6249,1,VO,201402,EL13,0,
B,Bromsgrove District Council,Central Services to the Public,Registration of Electors,Supplies and Services,Communication and computing,D56,Computer - hardware,28/05/2014,186351,28.00,Revenue income and expenditure,Probrand Limited,9439,1,VO,201402,EL00,P1,
B,Bromsgrove District Council,Surpluses/deficits on trading undertakings,Internal Business Units and Support Services,Supplies and Services,Communication and computing,D56,Computer - hardware,28/05/2014,186351,227.70,Revenue income and expenditure,Probrand Limited,9439,1,VO,201402,IT10,P1,
B,Bromsgrove District Council,Surpluses/deficits on trading undertakings,Internal Business Units and Support Services,Supplies and Services,Communication and computing,D56,Computer - hardware,28/05/2014,186351,227.70,Revenue income and expenditure,Probrand Limited,9439,1,VO,201402,IT12,P1,
B,Bromsgrove District Council,Surpluses/deficits on trading undertakings,Depot Services,Transport Related Expenditure,Direct Transport Costs,C01,Vehicle repairs/maint'ce,28/05/2014,186352,136.56,Revenue income and expenditure,Imperial Commercials Ltd. (Bristol),1403,1,VO,201402,DS62,P1,
B,Bromsgrove District Council,Surpluses/deficits on trading undertakings,Depot Services,Transport Related Expenditure,Direct Transport Costs,C01,Vehicle repairs/maint'ce,22/05/2014,186354,127.00,Revenue income and expenditure,Bromsgrove Motor Factors,1091,1,VO,201402,DW11,P1,
B,Bromsgrove District Council,Not BVACOP Service,Not BVACOP Sub Division,Current Assets,Stocks,300,Stock Movement,21/05/2014,186355,19.00,,Bromsgrove Motor Factors,1091,1,VO,201402,XX611,P1,
B,Bromsgrove District Council,Not BVACOP Service,Not BVACOP Sub Division,Current Assets,Stocks,300,Stock Movement,21/05/2014,186356,83.19,,Bromsgrove Motor Factors,1091,1,VO,201402,XX611,P1,
B,Bromsgrove District Council,Not BVACOP Service,Not BVACOP Sub Division,Current Assets,Stocks,300,Stock Movement,21/05/2014,186357,203.80,,Bromsgrove Motor Factors,1091,1,VO,201402,XX611,P1,
B,Bromsgrove District Council,Surpluses/deficits on trading undertakings,Depot Services,Transport Related Expenditure,Direct Transport Costs,C01,Vehicle repairs/maint'ce,21/05/2014,186358,12.78,Revenue income and expenditure,Bromsgrove Motor Factors,1091,1,VO,201402,DW11,P1,
B,Bromsgrove District Council,Surpluses/deficits on trading undertakings,Depot Services,Supplies and Services,"Equipment, furniture and materials",D03,Equipment - rental/lease,22/05/2014,186359,7.00,Revenue income and expenditure,BOC Gases Ltd,1075,1,VO,201402,DT41,P1,
B,Bromsgrove District Council,Surpluses/deficits on trading undertakings,Depot Services,Current Assets,Stocks,300,Stock Movement,22/05/2014,186361,27.24,Revenue income and expenditure,Arco Ltd,1027,1,VO,201402,DW21,P1,
B,Bromsgrove District Council,Surpluses/deficits on trading undertakings,Depot Services,Supplies and Services,"Equipment, furniture and materials",D06,Materials - purchased,22/05/2014,186361,149.60,Revenue income and expenditure,Arco Ltd,1027,1,VO,201402,DW21,P1,
B,Bromsgrove District Council,Surpluses/deficits on trading undertakings,Depot Services,Supplies and Services,"Equipment, furniture and materials",D01,Equipment - purchase,22/05/2014,186364,350.00,Revenue income and expenditure,Tudor Environmental,10241,1,VO,201402,DW32,P1,
B,Bromsgrove District Council,Not BVACOP Service,Not BVACOP Sub Division,Current Assets,Stocks,300,Stock Movement,22/05/2014,186366,250.00,,Janitorial Direct Ltd,6174,1,VO,201402,XX611,P1,
B,Bromsgrove District Council,,,Supplies and Services,"Equipment, furniture and materials",D03,Equipment - rental/lease,22/05/2014,186367,26.70,Revenue income and expenditure,Angel Springs Ltd,8009,1,VO,201402,CC01,P1,
B,Bromsgrove District Council,Not BVACOP Service,Not BVACOP Sub Division,Current Assets,Stocks,300,Stock Movement,23/05/2014,186368,65.40,,WasteParts UK Ltd,6508,1,VO,201402,XX611,P1,
B,Bromsgrove District Council,Not BVACOP Service,Not BVACOP Sub Division,Capital Expenditure,"Plant, vehicles and equipment",X21,Equipment (incl. heavy plant),22/05/2014,186369,"4,932.40",Capital income and expenditure,Craemer  UK Limited,2583,1,VO,201402,CAPS,P1,
B,Bromsgrove District Council,Highways and transport services,Off-street Parking,Supplies and Services,"Equipment, furniture and materials",D02,Equipment - maintenance,22/05/2014,186370,226.80,Revenue income and expenditure,Mercia Radiotelephones Ltd,4567,1,VO,201402,CP00,P1,
B,Bromsgrove District Council,Surpluses/deficits on trading undertakings,Depot Services,Supplies and Services,Miscellaneous expenses,D88,Miscellaneous expenses,22/05/2014,186371,20.16,Revenue income and expenditure,Mercia Waste Management Ltd,1433,1,VO,201402,DW32,P1,
B,Bromsgrove District Council,Central Services to the Public,Conducting Elections,Supplies and Services,Communication and computing,D51,Printing and stationery,22/05/2014,186372,41.25,Revenue income and expenditure,Harris & Spilsbury Ltd,7423,1,VO,201402,EL10,P1,
B,Bromsgrove District Council,Central Services to the Public,Conducting Elections,Supplies and Services,Miscellaneous expenses,D82,Non reclaimable VAT,22/05/2014,186372,8.25,Revenue income and expenditure,Harris & Spilsbury Ltd,7423,1,VO,201402,EL13,0,
B,Bromsgrove District Council,Central Services to the Public,Conducting Elections,Supplies and Services,Miscellaneous expenses,D82,Non reclaimable VAT,22/05/2014,186372,8.25,Revenue income and expenditure,Harris & Spilsbury Ltd,7423,1,VO,201402,EL05,0,
B,Bromsgrove District Council,Central Services to the Public,Conducting Elections,Supplies and Services,Communication and computing,D51,Printing and stationery,22/05/2014,186372,41.25,Revenue income and expenditure,Harris & Spilsbury Ltd,7423,1,VO,201402,EL05,N1,
B,Bromsgrove District Council,Central Services to the Public,Conducting Elections,Supplies and Services,Communication and computing,D51,Printing and stationery,22/05/2014,186372,41.25,Revenue income and expenditure,Harris & Spilsbury Ltd,7423,1,VO,201402,EL11,P1,
B,Bromsgrove District Council,Central Services to the Public,Conducting Elections,Supplies and Services,Communication and computing,D51,Printing and stationery,22/05/2014,186372,41.25,Revenue income and expenditure,Harris & Spilsbury Ltd,7423,1,VO,201402,EL13,N1,
B,Bromsgrove District Council,Not BVACOP Service,Not BVACOP Sub Division,Current Assets,Stocks,300,Stock Movement,22/05/2014,186376,327.16,,Scarab Sweepers Ltd,5827,1,VO,201402,XX611,P1,
B,Bromsgrove District Council,Surpluses/deficits on trading undertakings,Depot Services,Supplies and Services,Communication and computing,D53,Postage/packaging,22/05/2014,186376,17.00,Revenue income and expenditure,Scarab Sweepers Ltd,5827,1,VO,201402,DW21,P1,
B,Bromsgrove District Council,Surpluses/deficits on trading undertakings,Depot Services,Supplies and Services,Miscellaneous expenses,D88,Miscellaneous expenses,22/05/2014,186377,19.60,Revenue income and expenditure,Mercia Waste Management Ltd,1433,1,VO,201402,DW32,P1,
B,Bromsgrove District Council,Not BVACOP Service,Not BVACOP Sub Division,Current Assets,Stocks,300,Stock Movement,22/05/2014,186380,"24,741.10",,Harvest Energy Ltd,9164,1,VO,201402,XX611,P1,
B,Bromsgrove District Council,Surpluses/deficits on trading undertakings,Depot Services,Supplies and Services,"Equipment, furniture and materials",D06,Materials - purchased,28/05/2014,186382,112.20,Revenue income and expenditure,Pressure Coolers Trading as Maestro International,9070,1,VO,201402,DP02,P1,
B,Bromsgrove District Council,Planning and Development Services,Advice,Supplies and Services,Communication and computing,D54,Advertising (general),22/05/2014,186386,152.66,Revenue income and expenditure,TMP (UK) Ltd,1646,1,VO,201402,DC00,P1,
B,Bromsgrove District Council,Planning and Development Services,Advice,Supplies and Services,Communication and computing,D54,Advertising (general),22/05/2014,186387,420.20,Revenue income and expenditure,TMP (UK) Ltd,1646,1,VO,201402,DC00,P1,
B,Bromsgrove District Council,,,Third Party Payments,Other Local authorities,E33,Shared Service Expend - RBC,27/05/2014,186388,"17,897.22",Revenue income and expenditure,Redditch Borough Council,1533,5,VN,201402,RB10,P1,
B,Bromsgrove District Council,,,Third Party Payments,Other Local authorities,E33,Shared Service Expend - RBC,22/05/2014,186389,"27,630.00",Revenue income and expenditure,Redditch Borough Council,1533,5,VN,201402,CC01,P1,
B,Bromsgrove District Council,,,Third Party Payments,Other Local authorities,E33,Shared Service Expend - RBC,27/05/2014,186390,"78,236.57",Revenue income and expenditure,Redditch Borough Council,1533,5,VN,201402,RB01,P1,
B,Bromsgrove District Council,Surpluses/deficits on trading undertakings,Internal Business Units and Support Services,Supplies and Services,Services,D47,Consultants' fees,22/05/2014,186391,"1,697.33",Revenue income and expenditure,Birmingham City Council,1070,5,VN,201402,LS12,P1,
B,Bromsgrove District Council,Cultural and Related Services,Community Centres,Premise Related Expenditure,Water Services,B51,Water charges,22/05/2014,186393,207.30,Revenue income and expenditure,Severn Trent Water Ltd,2416,1,VN,201402,SS01,P4,
B,Bromsgrove District Council,Surpluses/deficits on trading undertakings,Internal Business Units and Support Services,Premise Related Expenditure,Water Services,B51,Water charges,22/05/2014,186394,"1,349.54",Revenue income and expenditure,Severn Trent Water Ltd,2416,1,VN,201402,ES20,P4,
B,Bromsgrove District Council,Environmental Services,Cemeteries,Premise Related Expenditure,Water Services,B51,Water charges,22/05/2014,186395,54.40,Revenue income and expenditure,Severn Trent Water Ltd,2416,1,VN,201402,CE01,P4,
B,Bromsgrove District Council,Surpluses/deficits on trading undertakings,Internal Business Units and Support Services,Supplies and Services,Communication and computing,D56,Computer - hardware,28/05/2014,186397,66.10,Revenue income and expenditure,Probrand Limited,9439,1,VO,201402,IT10,P1,
B,Bromsgrove District Council,Surpluses/deficits on trading undertakings,Internal Business Units and Support Services,Supplies and Services,Communication and computing,D56,Computer - hardware,28/05/2014,186397,66.10,Revenue income and expenditure,Probrand Limited,9439,1,VO,201402,IT12,P1,
B,Bromsgrove District Council,Surpluses/deficits on trading undertakings,Internal Business Units and Support Services,Supplies and Services,Services,D47,Consultants' fees,22/05/2014,186398,"2,891.05",Revenue income and expenditure,Birmingham City Council,1070,5,VO,201402,LS12,P1,
B,Bromsgrove District Council,Surpluses/deficits on trading undertakings,Internal Business Units and Support Services,Supplies and Services,Services,D47,Consultants' fees,22/05/2014,186398,18.90,Revenue income and expenditure,Birmingham City Council,1070,5,VO,201402,LS12,P4,
B,Bromsgrove District Council,Not BVACOP Service,Not BVACOP Sub Division,Current Assets,Stocks,300,Stock Movement,28/05/2014,186399,267.20,,Arco Ltd,1027,1,VO,201402,XX611,P1,
B,Bromsgrove District Council,,,Supplies and Services,Miscellaneous expenses,D88,Miscellaneous expenses,29/05/2014,186400,122.01,Revenue income and expenditure,G4S Cash Solutions UK Ltd.,9753,1,VO,201402,CC01,P1,
B,Bromsgrove District Council,,,Supplies and Services,Miscellaneous expenses,D88,Miscellaneous expenses,29/05/2014,186401,37.44,Revenue income and expenditure,G4S Cash Solutions UK Ltd.,9753,1,VO,201402,CC01,P1,
B,Bromsgrove District Council,Surpluses/deficits on trading undertakings,Depot Services,Supplies and Services,Communication and computing,D53,Postage/packaging,22/05/2014,186402,"2,018.00",Revenue income and expenditure,Neopost Ltd,1462,1,VO,201402,CD20,P4,
B,Bromsgrove District Council,Planning and Development Services,Advice,Supplies and Services,Communication and computing,D54,Advertising (general),02/06/2014,186403,171.77,Revenue income and expenditure,TMP (UK) Ltd,1646,1,VO,201402,DC00,P1,
B,Bromsgrove District Council,Planning and Development Services,Advice,Supplies and Services,Communication and computing,D54,Advertising (general),22/05/2014,186404,305.54,Revenue income and expenditure,TMP (UK) Ltd,1646,1,VO,201402,DC00,P1,
B,Bromsgrove District Council,Planning and Development Services,Advice,Supplies and Services,Communication and computing,D54,Advertising (general),22/05/2014,186405,248.21,Revenue income and expenditure,TMP (UK) Ltd,1646,1,VO,201402,DC00,P1,
B,Bromsgrove District Council,Not BVACOP Service,Not BVACOP Sub Division,Current Assets,Stocks,300,Stock Movement,22/05/2014,186406,-276.48,,Arco Ltd,1027,1,CN,201402,XX611,P1,
B,Bromsgrove District Council,Not BVACOP Service,Not BVACOP Sub Division,Current Assets,Stocks,300,Stock Movement,22/05/2014,186407,-121.44,,Arco Ltd,1027,1,CN,201402,XX611,P1,
B,Bromsgrove District Council,Not BVACOP Service,Not BVACOP Sub Division,Current Assets,Stocks,300,Stock Movement,22/05/2014,186408,-304.32,,Arco Ltd,1027,1,CN,201402,XX611,P1,
B,Bromsgrove District Council,Surpluses/deficits on trading undertakings,Internal Business Units and Support Services,Supplies and Services,Catering,D23,Catering (incl.food purchases),21/05/2014,186409,-13.00,Revenue income and expenditure,Blue Mountain Water,9003,1,CN,201402,IT12,P1,
B,Bromsgrove District Council,Not BVACOP Service,Not BVACOP Sub Division,Current Assets,Stocks,300,Stock Movement,22/05/2014,186410,-54.00,,Scarab Sweepers Ltd,5827,1,CN,201402,XX611,P1,
B,Bromsgrove District Council,,,Supplies and Services,Miscellaneous expenses,D88,Miscellaneous expenses,22/05/2014,186411,-28.08,Revenue income and expenditure,G4S Cash Solutions UK Ltd.,9753,1,CN,201402,CC01,P1,
B,Bromsgrove District Council,Surpluses/deficits on trading undertakings,Internal Business Units and Support Services,Supplies and Services,Communication and computing,D57,Computer - software,22/05/2014,186413,"7,210.00",Revenue income and expenditure,Xpress Software Solutions,9821,1,VO,201402,IT12,P1,
B,Bromsgrove District Council,Cultural and Related Services,Museums and Gallaries,Premise Related Expenditure,Water Services,B51,Water charges,28/05/2014,186416,157.69,Revenue income and expenditure,Severn Trent Water Ltd,2416,1,VN,201402,MT91,P4,
B,Bromsgrove District Council,,,Employees,Direct Employee Expenses,A10,Agency workers,29/05/2014,186418,836.55,Revenue income and expenditure,Morgan Hunt UK Ltd,9519,1,VN,201402,RB10,P1,
B,Bromsgrove District Council,Central Services to the Public,Registration of Electors,Supplies and Services,Communication and computing,D53,Postage/packaging,30/05/2014,186420,1.77,Revenue income and expenditure,Royal Mail Group Plc,1558,1,VN,201402,EL00,P1,
B,Bromsgrove District Council,,,Supplies and Services,Communication and computing,D50,Debt Collection Fees,29/05/2014,186424,36.75,Revenue income and expenditure,Bristow & Sutor,1085,1,VN,201402,RB10,P1,
B,Bromsgrove District Council,Highways and transport services,Off-street Parking,Supplies and Services,Communication and computing,D50,Debt Collection Fees,29/05/2014,186425,3.38,Revenue income and expenditure,Bristow & Sutor,1085,1,VN,201402,CP00,P1,
B,Bromsgrove District Council,,,Supplies and Services,Communication and computing,D50,Debt Collection Fees,29/05/2014,186426,142.64,Revenue income and expenditure,Bristow & Sutor,1085,1,VN,201402,RB10,P1,
B,Bromsgrove District Council,Surpluses/deficits on trading undertakings,Internal Business Units and Support Services,Employees,Indirect Employee Expenses,A30,Childminding allowances,29/05/2014,186436,44.32,Revenue income and expenditure,Wider Plan Ltd,10112,1,VN,201402,PS04,P1,
B,Bromsgrove District Council,Central Services to the Public,Conducting Elections,Supplies and Services,Communication and computing,D56,Computer - hardware,29/05/2014,186437,"3,024.00",Revenue income and expenditure,SHROPSHIRE COUNCIL,10629,1,VO,201402,EL28,P4,
B,Bromsgrove District Council,Central Services to the Public,Conducting Elections,Supplies and Services,Communication and computing,D56,Computer - hardware,29/05/2014,186437,"3,024.00",Revenue income and expenditure,SHROPSHIRE COUNCIL,10629,1,VO,201402,EL27,P4,
B,Bromsgrove District Council,Surpluses/deficits on trading undertakings,Depot Services,Supplies and Services,"Equipment, furniture and materials",D01,Equipment - purchase,03/06/2014,2071492,57.00,Revenue income and expenditure,,0,,PC,201402,DW11,P5,GPC Purchases May 2014 DVLA Digital Tacho
B,Bromsgrove District Council,Surpluses/deficits on trading undertakings,Depot Services,Supplies and Services,Services,D43,Training fees,03/06/2014,2071492,148.75,Revenue income and expenditure,,0,,PC,201402,DP02,P3,GPC Purchases May 2014 DSA
B,Bromsgrove District Council,Surpluses/deficits on trading undertakings,Depot Services,Employees,Indirect Employee Expenses,A23,Training for professional qualifications,03/06/2014,2071492,43.75,Revenue income and expenditure,,0,,PC,201402,DW11,P3,GPC Purchases May 2014 DSA
B,Bromsgrove District Council,Surpluses/deficits on trading undertakings,Depot Services,Transport Related Expenditure,Direct Transport Costs,C07,Licences,03/06/2014,2071492,167.50,Revenue income and expenditure,,0,,PC,201402,DW11,P5,GPC Purchases May 2014 DVLA
B,Bromsgrove District Council,Environmental Services,Public Toilets,Supplies and Services,"Equipment, furniture and materials",D06,Materials - purchased,03/06/2014,2071492,32.49,Revenue income and expenditure,,0,,PC,201402,PC00,P6,GPC Purchases May 2014 DSA
B,Bromsgrove District Council,Surpluses/deficits on trading undertakings,Depot Services,Transport Related Expenditure,Direct Transport Costs,C01,Vehicle repairs/maint'ce,03/06/2014,2071492,196.61,Revenue income and expenditure,,0,,PC,201402,DW21,P6,GPC Purchases May 2014 Bromsgrove Motor Factor
B,Bromsgrove District Council,Surpluses/deficits on trading undertakings,Depot Services,Employees,Indirect Employee Expenses,A23,Training for professional qualifications,03/06/2014,2071492,35.00,Revenue income and expenditure,,0,,PC,201402,DW21,P3,GPC Purchases May 2014 DSA
B,Bromsgrove District Council,Surpluses/deficits on trading undertakings,Depot Services,Supplies and Services,"Equipment, furniture and materials",D01,Equipment - purchase,03/06/2014,2071492,38.00,Revenue income and expenditure,,0,,PC,201402,DW32,P5,GPC Purchases May 2014 DVLA
B,Bromsgrove District Council,Environmental Services,Public Health,Transport Related Expenditure,Direct Transport Costs,C07,Licences,03/06/2014,2071492,682.50,Revenue income and expenditure,,0,,PC,201402,HM13,P5,GPC Purchases May 2014 DVLA
B,Bromsgrove District Council,Surpluses/deficits on trading undertakings,Depot Services,Transport Related Expenditure,Direct Transport Costs,C01,Vehicle repairs/maint'ce,03/06/2014,2071492,24.45,Revenue income and expenditure,,0,,PC,201402,DW21,P6,GPC Purchases May 2014 DSA
B,Bromsgrove District Council,Environmental Services,Cemeteries,Employees,Indirect Employee Expenses,A23,Training for professional qualifications,03/06/2014,2071492,17.50,Revenue income and expenditure,,0,,PC,201402,CE01,P3,GPC Purchases May 2014 DSA
B,Bromsgrove District Council,Surpluses/deficits on trading undertakings,Depot Services,Transport Related Expenditure,Direct Transport Costs,C07,Licences,03/06/2014,2071492,232.50,Revenue income and expenditure,,0,,PC,201402,DW11,P5,GPC Purchases May 2014 DSA
B,Bromsgrove District Council,,,Supplies and Services,Catering,D23,Catering (incl.food purchases),04/06/2014,2071510,23.36,Revenue income and expenditure,,0,,PC,201402,CD41,P4,GPC Purchases May 2014 Co-Op
B,Bromsgrove District Council,Cultural and Related Services,Community parks and open spaces,Supplies and Services,"Equipment, furniture and materials",D06,Materials - purchased,04/06/2014,2071510,4.16,Revenue income and expenditure,,0,,PC,201402,SP00,P6,GPC Purchases May 2014 Broadstreet DIY
B,Bromsgrove District Council,Surpluses/deficits on trading undertakings,Depot Services,Employees,Indirect Employee Expenses,A32,Long service awards,04/06/2014,2071510,250.00,Revenue income and expenditure,,0,,PC,201402,DW32,P4,GPC Purchases May 2014 Argos Long Service
B,Bromsgrove District Council,Surpluses/deficits on trading undertakings,Internal Business Units and Support Services,Supplies and Services,Communication and computing,D57,Computer - software,04/06/2014,2071510,759.48,Revenue income and expenditure,,0,,PC,201402,IT12,P4,GPC Purchases May 2014 Geotrust
B,Bromsgrove District Council,Cultural and Related Services,Community parks and open spaces,Supplies and Services,"Equipment, furniture and materials",D06,Materials - purchased,04/06/2014,2071510,6.37,Revenue income and expenditure,,0,,PC,201402,SP00,P6,GPC Purchases May 2014 Bromsgrove Cobbler
B,Bromsgrove District Council,Surpluses/deficits on trading undertakings,Internal Business Units and Support Services,Supplies and Services,Communication and computing,D57,Computer - software,04/06/2014,2071510,695.30,Revenue income and expenditure,,0,,PC,201402,IT12,P4,GPC Purchases May 2014 PLI Visual
B,Bromsgrove District Council,General Fund Housing Services,Housing Strategy,Transport Related Expenditure,Public Transport,C44,Public transport,04/06/2014,2071510,99.00,Revenue income and expenditure,,0,,PC,201402,HG20,P4,GPC Purchases May 2014 Virgin Trains
B,Bromsgrove District Council,,,Supplies and Services,Catering,D24,Civic hospitality,04/06/2014,2071510,94.69,Revenue income and expenditure,,0,,PC,201402,CD61,P6,GPC Purchases May 2014 Morrisons
B,Bromsgrove District Council,Surpluses/deficits on trading undertakings,Internal Business Units and Support Services,Supplies and Services,"Equipment, furniture and materials",D06,Materials - purchased,04/06/2014,2071510,82.85,Revenue income and expenditure,,0,,PC,201402,ES20,P6,GPC Purchases May 2014 Travis Perkins
B,Bromsgrove District Council,,,Supplies and Services,Miscellaneous expenses,D85,General expenses,04/06/2014,2071510,41.67,Revenue income and expenditure,,0,,PC,201402,CD61,P6,GPC Purchases May 2014 Fresh Flowers
B,Bromsgrove District Council,,,Supplies and Services,Miscellaneous expenses,D87,Marketing/promotion/publicity,04/06/2014,2071510,8.25,Revenue income and expenditure,,0,,PC,201402,CM19,P6,GPC Purchases May 2014 Paypal
B,Bromsgrove District Council,Surpluses/deficits on trading undertakings,Internal Business Units and Support Services,Transport Related Expenditure,Public Transport,C44,Public transport,04/06/2014,2071510,182.27,Revenue income and expenditure,,0,,PC,201402,IT12,P4,GPC Purchases May 2014 Trainline
B,Bromsgrove District Council,,,Supplies and Services,Miscellaneous expenses,D87,Marketing/promotion/publicity,04/06/2014,2071510,24.99,Revenue income and expenditure,,0,,PC,201402,CM19,P6,GPC Purchases May 2014 Currys Online
B,Bromsgrove District Council,Central Services to the Public,Community Centres,Supplies and Services,"Equipment, furniture and materials",D06,Materials - purchased,04/06/2014,2071510,476.55,Revenue income and expenditure,,0,,PC,201402,AH01,P6,GPC Purchases May 2014 Screwfix
B,Bromsgrove District Council,,,Supplies and Services,Services,D49,Miscellaneous services,04/06/2014,2071510,"1,080.00",Revenue income and expenditure,,0,,PC,201402,RB10,P4,GPC Purchases May 2014 HMCourts
B,Bromsgrove District Council,Surpluses/deficits on trading undertakings,Internal Business Units and Support Services,Supplies and Services,Communication and computing,D52,Books and publications,04/06/2014,2071510,100.00,Revenue income and expenditure,,0,,PC,201402,IT12,P6,GPC Purchases May 2014 British Standards
B,Bromsgrove District Council,Environmental Services,Public Toilets,Supplies and Services,"Equipment, furniture and materials",D06,Materials - purchased,04/06/2014,2071510,4.00,Revenue income and expenditure,,0,,PC,201402,PC03,P5,GPC Purchases May 2014 Bromsgrove District Council
B,Bromsgrove District Council,,,Supplies and Services,Catering,D24,Civic hospitality,04/06/2014,2071510,5.42,Revenue income and expenditure,,0,,PC,201402,CD61,P6,GPC Purchases May 2014 Co-Op
B,Bromsgrove District Council,Cultural and Related Services,Community parks and open spaces,Supplies and Services,"Equipment, furniture and materials",D06,Materials - purchased,04/06/2014,2071510,4.99,Revenue income and expenditure,,0,,PC,201402,SP00,P6,GPC Purchases May 2014 Broadstreet DIY
B,Bromsgrove District Council,Cultural and Related Services,Indoor Sports and Recreation Facilities,Supplies and Services,Miscellaneous expenses,D88,Miscellaneous expenses,07/05/2014,7050926,74.00,Revenue income and expenditure,James Tillson,4716,1,AP,201402,SC01,P4,
B,Bromsgrove District Council,Surpluses/deficits on trading undertakings,Depot Services,Premise Related Expenditure,Energy Costs,B22,Electricity,16/05/2014,7050936,256.37,Revenue income and expenditure,Npower Limited,2080,1,AP,201402,DS61,P1,LJ660036
B,Bromsgrove District Council,Surpluses/deficits on trading undertakings,Internal Business Units and Support Services,Premise Related Expenditure,Energy Costs,B22,Electricity,16/05/2014,7050937,"1,780.65",Revenue income and expenditure,Npower Limited,2080,1,AP,201402,ES20,P1,LJ660035
B,Bromsgrove District Council,Environmental Services,Community Safety (Crime Reduction),Premise Related Expenditure,Energy Costs,B22,Electricity,16/05/2014,7050938,159.17,Revenue income and expenditure,Npower Limited,2080,1,AP,201402,CS22,P1,LJ660003 - 4 - 5
B,Bromsgrove District Council,Highways and transport services,Off-street Parking,Premise Related Expenditure,Energy Costs,B22,Electricity,16/05/2014,7050938,"1,224.64",Revenue income and expenditure,Npower Limited,2080,1,AP,201402,CP00,P1,LJ660003 - 4 - 5
B,Bromsgrove District Council,Surpluses/deficits on trading undertakings,Depot Services,Premise Related Expenditure,Energy Costs,B22,Electricity,16/05/2014,7050939,202.84,Revenue income and expenditure,Npower Limited,2080,1,AP,201402,DS61,P1,LJ660036
B,Bromsgrove District Council,Surpluses/deficits on trading undertakings,Internal Business Units and Support Services,Premise Related Expenditure,Energy Costs,B22,Electricity,16/05/2014,7050940,13.22,Revenue income and expenditure,Npower Limited,2080,1,AP,201402,ES20,P2,
B,Bromsgrove District Council,Cultural and Related Services,Outdoor sports and recreation facilities,Premise Related Expenditure,Energy Costs,B22,Electricity,16/05/2014,7050940,5.83,Revenue income and expenditure,Npower Limited,2080,1,AP,201402,RG64,P2,
B,Bromsgrove District Council,Environmental Services,Public Toilets,Premise Related Expenditure,Energy Costs,B22,Electricity,16/05/2014,7050940,13.01,Revenue income and expenditure,Npower Limited,2080,1,AP,201402,PC04,P2,
B,Bromsgrove District Council,Environmental Services,Public Toilets,Premise Related Expenditure,Energy Costs,B22,Electricity,16/05/2014,7050940,277.58,Revenue income and expenditure,Npower Limited,2080,1,AP,201402,PC03,P1,
B,Bromsgrove District Council,Highways and transport services,Off-street Parking,Premise Related Expenditure,Energy Costs,B22,Electricity,16/05/2014,7050940,"1,182.67",Revenue income and expenditure,Npower Limited,2080,1,AP,201402,CP01,P1,
B,Bromsgrove District Council,Cultural and Related Services,Outdoor sports and recreation facilities,Premise Related Expenditure,Energy Costs,B22,Electricity,16/05/2014,7050940,104.53,Revenue income and expenditure,Npower Limited,2080,1,AP,201402,RG61,P2,
B,Bromsgrove District Council,Cultural and Related Services,Outdoor sports and recreation facilities,Premise Related Expenditure,Energy Costs,B22,Electricity,16/05/2014,7050940,32.25,Revenue income and expenditure,Npower Limited,2080,1,AP,201402,RG62,P2,
B,Bromsgrove District Council,Cultural and Related Services,Museums and Gallaries,Premise Related Expenditure,Energy Costs,B22,Electricity,16/05/2014,7050940,17.31,Revenue income and expenditure,Npower Limited,2080,1,AP,201402,MT91,P2,
B,Bromsgrove District Council,Environmental Services,Cemeteries,Premise Related Expenditure,Energy Costs,B22,Electricity,16/05/2014,7050940,66.77,Revenue income and expenditure,Npower Limited,2080,1,AP,201402,CE01,P2,
B,Bromsgrove District Council,Central Services to the Public,Community Centres,Premise Related Expenditure,Energy Costs,B22,Electricity,16/05/2014,7050940,53.00,Revenue income and expenditure,Npower Limited,2080,1,AP,201402,AH01,P2,
B,Bromsgrove District Council,Surpluses/deficits on trading undertakings,Internal Business Units and Support Services,Premise Related Expenditure,Energy Costs,B22,Electricity,16/05/2014,7050940,"2,788.37",Revenue income and expenditure,Npower Limited,2080,1,AP,201402,ES20,P1,
B,Bromsgrove District Council,Surpluses/deficits on trading undertakings,Depot Services,Premise Related Expenditure,Energy Costs,B22,Electricity,16/05/2014,7050940,641.49,Revenue income and expenditure,Npower Limited,2080,1,AP,201402,DP02,P1,
B,Bromsgrove District Council,Environmental Services,Cemeteries,Premise Related Expenditure,Energy Costs,B22,Electricity,16/05/2014,7050940,33.17,Revenue income and expenditure,Npower Limited,2080,1,AP,201402,CE03,P2,
B,Bromsgrove District Council,Cultural and Related Services,Community parks and open spaces,Premise Related Expenditure,Energy Costs,B22,Electricity,16/05/2014,7050940,265.24,Revenue income and expenditure,Npower Limited,2080,1,AP,201402,SP00,P1,
B,Bromsgrove District Council,Environmental Services,Public Toilets,Premise Related Expenditure,Energy Costs,B22,Electricity,16/05/2014,7050940,44.80,Revenue income and expenditure,Npower Limited,2080,1,AP,201402,PC01,P2,
B,Bromsgrove District Council,Cultural and Related Services,Community parks and open spaces,Premise Related Expenditure,Energy Costs,B22,Electricity,16/05/2014,7050940,12.42,Revenue income and expenditure,Npower Limited,2080,1,AP,201402,RG01,P1,
B,Bromsgrove District Council,Surpluses/deficits on trading undertakings,Internal Business Units and Support Services,Supplies and Services,Services,D49,Miscellaneous services,16/05/2014,7050941,27.50,Revenue income and expenditure,National Westminster Bank (Audit Team),10729,1,AP,201402,FS07,P1,
B,Bromsgrove District Council,Surpluses/deficits on trading undertakings,Depot Services,Premise Related Expenditure,Energy Costs,B23,Gas,16/05/2014,7050942,"2,243.63",Revenue income and expenditure,Total Gas & Power,10244,1,AP,201402,DP02,P1,3003128458
B,Bromsgrove District Council,Surpluses/deficits on trading undertakings,Internal Business Units and Support Services,Premise Related Expenditure,Energy Costs,B23,Gas,16/05/2014,7050943,"3,432.50",Revenue income and expenditure,Total Gas & Power,10244,1,AP,201402,ES20,P1,300133408
B,Bromsgrove District Council,Surpluses/deficits on trading undertakings,Depot Services,Premise Related Expenditure,Energy Costs,B23,Gas,16/05/2014,7050944,"1,439.19",Revenue income and expenditure,Total Gas & Power,10244,1,AP,201402,DP02,P1,3003128458
B,Bromsgrove District Council,Surpluses/deficits on trading undertakings,Internal Business Units and Support Services,Premise Related Expenditure,Energy Costs,B23,Gas,16/05/2014,7050945,"3,475.56",Revenue income and expenditure,Total Gas & Power,10244,1,AP,201402,ES20,P1,3003133408
B,Bromsgrove District Council,Surpluses/deficits on trading undertakings,Depot Services,Premise Related Expenditure,"Repairs, alterations and maint. of buildings",B03,Internal repair/maint. (reg'd for gross pay't),28/05/2014,7050958,100.00,Revenue income and expenditure,REDACTED PERSONAL DATA,10737,3,AP,201402,DW11,P4,
B,Bromsgrove District Council,General Fund Housing Services,Housing Strategy,Premise Related Expenditure,Rents,B30,Rents,28/05/2014,7050960,525.00,Revenue income and expenditure,REDACTED PERSONAL DATA,10735,3,AP,201402,HG51,P4,
B,Bromsgrove District Council,Central Services to the Public,Conducting Elections,Supplies and Services,Communication and computing,D51,Printing and stationery,28/05/2014,7050962,26.90,Revenue income and expenditure,West Mercia Supplies,1703,1,AP,201402,EL05,N1,
B,Bromsgrove District Council,Central Services to the Public,Conducting Elections,Supplies and Services,Communication and computing,D51,Printing and stationery,28/05/2014,7050962,8.07,Revenue income and expenditure,West Mercia Supplies,1703,1,AP,201402,EL11,P1,
B,Bromsgrove District Council,Central Services to the Public,Conducting Elections,Supplies and Services,Miscellaneous expenses,D82,Non reclaimable VAT,28/05/2014,7050962,5.38,Revenue income and expenditure,West Mercia Supplies,1703,1,AP,201402,EL05,0,
B,Bromsgrove District Council,Central Services to the Public,Conducting Elections,Supplies and Services,Communication and computing,D51,Printing and stationery,28/05/2014,7050962,10.76,Revenue income and expenditure,West Mercia Supplies,1703,1,AP,201402,EL13,N1,
B,Bromsgrove District Council,Central Services to the Public,Conducting Elections,Supplies and Services,Communication and computing,D51,Printing and stationery,28/05/2014,7050962,8.07,Revenue income and expenditure,West Mercia Supplies,1703,1,AP,201402,EL10,P1,
B,Bromsgrove District Council,Central Services to the Public,Conducting Elections,Supplies and Services,Miscellaneous expenses,D82,Non reclaimable VAT,28/05/2014,7050962,2.15,Revenue income and expenditure,West Mercia Supplies,1703,1,AP,201402,EL13,0,
B,Bromsgrove District Council,Cultural and Related Services,Outdoor sports and recreation facilities,Premise Related Expenditure,Energy Costs,B22,Electricity,28/05/2014,7050963,19.63,Revenue income and expenditure,Npower Limited,2080,1,AP,201402,RG64,P2,LJ66002
B,Bromsgrove District Council,Surpluses/deficits on trading undertakings,Internal Business Units and Support Services,Premise Related Expenditure,Energy Costs,B22,Electricity,28/05/2014,7050964,"2,825.41",Revenue income and expenditure,Npower Limited,2080,1,AP,201402,ES20,P1,"LJ66002,11,13,15,16,17,18,19,20,23,28,29,30,31,32,"
B,Bromsgrove District Council,Environmental Services,Public Toilets,Premise Related Expenditure,Energy Costs,B22,Electricity,28/05/2014,7050964,27.05,Revenue income and expenditure,Npower Limited,2080,1,AP,201402,PC01,P2,"LJ66002,11,13,15,16,17,18,19,20,23,28,29,30,31,32,"
B,Bromsgrove District Council,Cultural and Related Services,Outdoor sports and recreation facilities,Premise Related Expenditure,Energy Costs,B22,Electricity,28/05/2014,7050964,62.26,Revenue income and expenditure,Npower Limited,2080,1,AP,201402,RG61,P2,"LJ66002,11,13,15,16,17,18,19,20,23,28,29,30,31,32,"
B,Bromsgrove District Council,Environmental Services,Public Toilets,Premise Related Expenditure,Energy Costs,B22,Electricity,28/05/2014,7050964,14.13,Revenue income and expenditure,Npower Limited,2080,1,AP,201402,PC04,P2,"LJ66002,11,13,15,16,17,18,19,20,23,28,29,30,31,32,"
B,Bromsgrove District Council,Environmental Services,Public Toilets,Premise Related Expenditure,Energy Costs,B22,Electricity,28/05/2014,7050964,275.33,Revenue income and expenditure,Npower Limited,2080,1,AP,201402,PC03,P1,"LJ66002,11,13,15,16,17,18,19,20,23,28,29,30,31,32,"
B,Bromsgrove District Council,Environmental Services,Cemeteries,Premise Related Expenditure,Energy Costs,B22,Electricity,28/05/2014,7050964,27.87,Revenue income and expenditure,Npower Limited,2080,1,AP,201402,CE03,P2,"LJ66002,11,13,15,16,17,18,19,20,23,28,29,30,31,32,"
B,Bromsgrove District Council,Cultural and Related Services,Museums and Gallaries,Premise Related Expenditure,Energy Costs,B22,Electricity,28/05/2014,7050964,16.17,Revenue income and expenditure,Npower Limited,2080,1,AP,201402,MT91,P2,"LJ66002,11,13,15,16,17,18,19,20,23,28,29,30,31,32,"
B,Bromsgrove District Council,Cultural and Related Services,Community parks and open spaces,Premise Related Expenditure,Energy Costs,B22,Electricity,28/05/2014,7050964,12.27,Revenue income and expenditure,Npower Limited,2080,1,AP,201402,RG01,P1,"LJ66002,11,13,15,16,17,18,19,20,23,28,29,30,31,32,"
B,Bromsgrove District Council,Environmental Services,Cemeteries,Premise Related Expenditure,Energy Costs,B22,Electricity,28/05/2014,7050964,39.37,Revenue income and expenditure,Npower Limited,2080,1,AP,201402,CE01,P2,"LJ66002,11,13,15,16,17,18,19,20,23,28,29,30,31,32,"
B,Bromsgrove District Council,Highways and transport services,Off-street Parking,Premise Related Expenditure,Energy Costs,B22,Electricity,28/05/2014,7050964,"1,043.21",Revenue income and expenditure,Npower Limited,2080,1,AP,201402,CP01,P1,"LJ66002,11,13,15,16,17,18,19,20,23,28,29,30,31,32,"
B,Bromsgrove District Council,Surpluses/deficits on trading undertakings,Internal Business Units and Support Services,Premise Related Expenditure,Energy Costs,B22,Electricity,28/05/2014,7050964,11.79,Revenue income and expenditure,Npower Limited,2080,1,AP,201402,ES20,P2,"LJ66002,11,13,15,16,17,18,19,20,23,28,29,30,31,32,"
B,Bromsgrove District Council,Cultural and Related Services,Community parks and open spaces,Premise Related Expenditure,Energy Costs,B22,Electricity,28/05/2014,7050964,327.61,Revenue income and expenditure,Npower Limited,2080,1,AP,201402,SP00,P1,"LJ66002,11,13,15,16,17,18,19,20,23,28,29,30,31,32,"
B,Bromsgrove District Council,Central Services to the Public,Community Centres,Premise Related Expenditure,Energy Costs,B22,Electricity,28/05/2014,7050964,64.09,Revenue income and expenditure,Npower Limited,2080,1,AP,201402,AH01,P2,"LJ66002,11,13,15,16,17,18,19,20,23,28,29,30,31,32,"
B,Bromsgrove District Council,Cultural and Related Services,Outdoor sports and recreation facilities,Premise Related Expenditure,Energy Costs,B22,Electricity,28/05/2014,7050964,18.00,Revenue income and expenditure,Npower Limited,2080,1,AP,201402,RG62,P2,"LJ66002,11,13,15,16,17,18,19,20,23,28,29,30,31,32,"
B,Bromsgrove District Council,Surpluses/deficits on trading undertakings,Depot Services,Premise Related Expenditure,Energy Costs,B22,Electricity,28/05/2014,7050964,516.72,Revenue income and expenditure,Npower Limited,2080,1,AP,201402,DP02,P1,"LJ66002,11,13,15,16,17,18,19,20,23,28,29,30,31,32,"
B,Bromsgrove District Council,Environmental Services,Public Toilets,Supplies and Services,Services,D47,Consultants' fees,29/05/2014,7050965,183.00,Revenue income and expenditure,Bradley Environmental Consultants,1082,1,AP,201402,PC01,P1,
B,Bromsgrove District Council,Environmental Services,Public Toilets,Supplies and Services,Services,D47,Consultants' fees,29/05/2014,7050966,183.00,Revenue income and expenditure,Bradley Environmental Consultants,1082,1,AP,201402,PC04,P1,
B,Bromsgrove District Council,Cultural and Related Services,Outdoor sports and recreation facilities,Supplies and Services,Services,D47,Consultants' fees,29/05/2014,7050967,183.00,Revenue income and expenditure,Bradley Environmental Consultants,1082,1,AP,201402,RG62,P1,
B,Bromsgrove District Council,Cultural and Related Services,Outdoor sports and recreation facilities,Supplies and Services,Services,D47,Consultants' fees,29/05/2014,7050968,183.00,Revenue income and expenditure,Bradley Environmental Consultants,1082,1,AP,201402,RG63,P1,
B,Bromsgrove District Council,Cultural and Related Services,Museums and Gallaries,Supplies and Services,Services,D47,Consultants' fees,29/05/2014,7050969,"1,100.00",Revenue income and expenditure,Bradley Environmental Consultants,1082,1,AP,201402,MT91,P1,
B,Bromsgrove District Council,Cultural and Related Services,Outdoor sports and recreation facilities,Supplies and Services,Services,D47,Consultants' fees,29/05/2014,7050970,183.00,Revenue income and expenditure,Bradley Environmental Consultants,1082,1,AP,201402,RG64,P1,
B,Bromsgrove District Council,Environmental Services,Public Toilets,Supplies and Services,Services,D47,Consultants' fees,29/05/2014,7050971,183.00,Revenue income and expenditure,Bradley Environmental Consultants,1082,1,AP,201402,PC03,P1,
B,Bromsgrove District Council,Surpluses/deficits on trading undertakings,Internal Business Units and Support Services,Supplies and Services,Services,D49,Miscellaneous services,02/05/2014,2071117,512.40,Revenue income and expenditure,HSBC,0,,JB,201402,FS07,P3,Bank Debit 01/05
B,Bromsgrove District Council,,,Supplies and Services,Services,D49,Miscellaneous services,02/05/2014,2071117,77.69,Revenue income and expenditure,HSBC,0,,JB,201402,RB01,P3,Bank Debit 01/05
B,Bromsgrove District Council,Planning and Development Services,Supplementary planning guidance,Supplies and Services,Services,D49,Miscellaneous services,08/05/2014,2071204,6.00,Revenue income and expenditure,Land Registry,0,,JB,201402,LP01,P3,Bank Debit 07-05-14
B,Bromsgrove District Council,Planning and Development Services,Advice,Supplies and Services,Services,D49,Miscellaneous services,08/05/2014,2071204,4.00,Revenue income and expenditure,Land Registry,0,,JB,201402,DC01,P3,Bank Debit 07-05-14
B,Bromsgrove District Council,,,Supplies and Services,Services,D49,Miscellaneous services,08/05/2014,2071204,3.00,Revenue income and expenditure,Land Registry,0,,JB,201402,RB01,P3,Bank Debit 07-05-14
B,Bromsgrove District Council,Central Services to the Public,Local Land Charges,Supplies and Services,Services,D49,Miscellaneous services,08/05/2014,2071204,40.00,Revenue income and expenditure,Land Registry,0,,JB,201402,LC00,P3,Bank Debit 07-05-14
B,Bromsgrove District Council,Planning and Development Services,Supplementary planning guidance,Supplies and Services,Services,D49,Miscellaneous services,14/05/2014,2071277,4.00,Revenue income and expenditure,Land Registry,0,,JB,201402,LP01,P3,Bank Journal 13-05-14
B,Bromsgrove District Council,Surpluses/deficits on trading undertakings,Internal Business Units and Support Services,Supplies and Services,Services,D49,Miscellaneous services,14/05/2014,2071277,10.00,Revenue income and expenditure,Land Registry,0,,JB,201402,LS00,P3,Bank Journal 13-05-14
B,Bromsgrove District Council,Surpluses/deficits on trading undertakings,Internal Business Units and Support Services,Supplies and Services,Miscellaneous expenses,D88,Miscellaneous expenses,14/05/2014,2071277,6.00,Revenue income and expenditure,Land Registry,0,,JB,201402,LS00,P3,Bank Journal 13-05-14
B,Bromsgrove District Council,,,Supplies and Services,Services,D49,Miscellaneous services,14/05/2014,2071277,12.00,Revenue income and expenditure,Land Registry,0,,JB,201402,RB01,P3,Bank Journal 13-05-14
B,Bromsgrove District Council,Surpluses/deficits on trading undertakings,Internal Business Units and Support Services,Supplies and Services,Services,D49,Miscellaneous services,16/05/2014,2071305,362.55,Revenue income and expenditure,HSBC,0,,JB,201402,FS07,P3,Bank Journal 15-05-14
B,Bromsgrove District Council,,,Supplies and Services,Services,D49,Miscellaneous services,16/05/2014,2071305,"1,562.42",Revenue income and expenditure,HSBC,0,,JB,201402,RB01,P3,Bank Journal 15-05-14
B,Bromsgrove District Council,Surpluses/deficits on trading undertakings,Internal Business Units and Support Services,Supplies and Services,Services,D49,Miscellaneous services,20/05/2014,2071348,3.50,Revenue income and expenditure,Global Payments,0,,JB,201402,FS07,P6,Bank Debit 19/05/14
B,Bromsgrove District Council,Surpluses/deficits on trading undertakings,Internal Business Units and Support Services,Supplies and Services,Services,D49,Miscellaneous services,20/05/2014,2071348,"2,894.06",Revenue income and expenditure,Global Payments,0,,JB,201402,FS07,P3,Bank Debit 19/05/14
B,Bromsgrove District Council,Planning and Development Services,Supplementary planning guidance,Supplies and Services,Services,D49,Miscellaneous services,21/05/2014,2071351,16.00,Revenue income and expenditure,Land Registry,0,,JB,201402,LP01,P3,Bank Debit 20/05/14 6555066
B,Bromsgrove District Council,Surpluses/deficits on trading undertakings,Internal Business Units and Support Services,Supplies and Services,Services,D49,Miscellaneous services,21/05/2014,2071351,6.00,Revenue income and expenditure,Land Registry,0,,JB,201402,LS00,P3,Bank Debit 20/05/14 6555066
B,Bromsgrove District Council,Planning and Development Services,Advice,Supplies and Services,Services,D49,Miscellaneous services,21/05/2014,2071351,6.00,Revenue income and expenditure,Land Registry,0,,JB,201402,DC00,P3,Bank Debit 20/05/14 6555066
B,Bromsgrove District Council,Environmental Services,Community Safety (Crime Reduction),Supplies and Services,Services,D49,Miscellaneous services,21/05/2014,2071351,4.00,Revenue income and expenditure,Land Registry,0,,JB,201402,CS21,P3,Bank Debit 20/05/14 6555066
B,Bromsgrove District Council,,,Supplies and Services,Services,D49,Miscellaneous services,21/05/2014,2071351,6.00,Revenue income and expenditure,Land Registry,0,,JB,201402,RB01,P3,Bank Debit 20/05/14 6555260
B,Bromsgrove District Council,,,Supplies and Services,Services,D49,Miscellaneous services,21/05/2014,2071351,9.00,Revenue income and expenditure,Land Registry,0,,JB,201402,RB02,P3,Bank Debit 20/05/14 6554969
,,,,,,,,,,"761,829.40",,,,,,,,,
